Workbook

Sheet Hovedmeny
N3: Lønnsomhetsberegning for skogsveier
M18: Sist oppdatert: 06.10.2015

Sheet Avansert
C2: Lønnsomhetsberegning av skogsveier | L2: Inntekt
L3: Sagtømmer | M3: Massev. | N3: sum | O3: Kostnad | P3: Innsparing
B4: Velg veitype
C5: 1
B6: Andel utilgjeng uten vei | K6: Nullområde | L6: =C9*((E22+G22)*C6) -> 0 | M6: =E9*C22*C6 -> 0 | N6: =SUM(L6:M6) -> 0 | O6: =(C11+E11)*((C22+E22+G22)*C6) -> 0 | P6: =L6-O6 -> 0
B7: Jakt, fiske, friluftsliv o.a. | D7: kr/år | AC7: Før tilskudd | AF7: Før tilskudd | AI7: Før tilskudd | AL7: Før tilskudd | AP7: Etter tilskudd | AS7: Etter tilskudd | AV7: Etter tilskudd | AY7: Etter tilskudd | BC7: Etter tilskudd og skogfond | BF7: Etter tilskudd og skogfond | BI7: Etter tilskudd og skogfond | BL7: Etter tilskudd og skogfond
C8: Sagtømmer | E8: Massevirke | L8: III | N8: IV | P8: V | AB8: 20år | AC8: 20år | AD8: 20år | AE8: 25år | AF8: 25år | AG8: 25år | AH8: 30år | AI8: 30år | AJ8: 30år | AK8: 40år | AL8: 40år | AM8: 40år | AO8: 20år | AP8: 20år | AQ8: 20år | AR8: 25år | AS8: 25år | AT8: 25år | AU8: 30år | AV8: 30år | AW8: 30år | AX8: 40år | AY8: 40år | AZ8: 40år | BB8: 20år | BC8: 20år | BD8: 20år | BE8: 25år | BF8: 25år | BG8: 25år | BH8: 30år | BI8: 30år | BJ8: 30år | BK8: 40år | BL8: 40år | BM8: 40år
B9: Tømmerpriser | D9: kr/m3 | F9: kr/m3 | K9: Hogst | L9: Hogstmaskin | M9: Motorsag | N9: Hogstmaskin | O9: Motorsag | P9: Hogstmaskin | Q9: Motorsag | R9: sum | AD9: int.rente | AG9: int.rente | AJ9: int.rente | AM9: int.rente | AO9: Etter tilskudd | AQ9: int.rente | AT9: int.rente | AW9: int.rente | AZ9: int.rente | BB9: Etter tilskudd | BD9: int.rente | BG9: int.rente | BJ9: int.rente | BM9: int.rente
B10: Driftspriser | C10: Hogst | E10: Utkjøring | G10: Sum | K10: m3 | L10: =C22*C29 -> 0 | M10: =C22*C30 -> 0 | N10: =E22*E29 -> 0 | O10: =E22*E30 -> 0 | P10: =G22*G29 -> 0 | Q10: =G22*G30 -> 0 | R10: =SUM(L10:Q10) -> 0 | AA10: Vedlikehold | AB10: Innsparing | AC10: Int.rente | AD10: =IF($L$86=0,"",IRR(AC11:AC31)) ->  | AE10: Innsparing | AF10: Int.rente | AG10: =IF($L$86=0,"",IRR(AF11:AF36)) ->  | AH10: Innsparing | AI10: Int.rente | AJ10: =IF($L$86=0,"",IRR(AI11:AI41)) ->  | AK10: Innsparing | AL10: Int.rente | AM10: =IF($L$86=0,"",IRR(AL11:AL51)) ->  | AO10: Innsparing | AP10: Int.rente | AQ10: =IF($L$86=0,"",IRR(AP11:AP31)) ->  | AR10: Innsparing | AS10: Int.rente | AT10: =IF($L$10=0,"",IRR(AS11:AS36)) ->  | AU10: Innsparing | AV10: Int.rente | AW10: =IF($L$10=0,"",IRR(AV11:AV41)) ->  | AX10: Innsparing | AY10: Int.rente | AZ10: =IF($L$10=0,"",IRR(AY11:AY51)) ->  | BB10: Innsparing | BC10: Int.rente | BD10: =IF($L$86=0,"",IRR(BC11:BC31)) ->  | BE10: Innsparing | BF10: Int.rente | BG10: =IF($L$10=0,"",IRR(BF11:BF36)) ->  | BH10: Innsparing | BI10: Int.rente | BJ10: =IF($L$10=0,"",IRR(BI11:BI41)) ->  | BK10: Innsparing | BL10: Int.rente | BM10: =IF($L$10=0,"",IRR(BL11:BL51)) -> 
B11: Slutthogst | D11: kr/m3 | F11: kr/m3 | G11: =C11+E11 -> 0 | H11: kr/m3 | K11: Innspart transp | L11: =C46-E46 -> 0 | M11: =$L$11 -> 0 | N11: =$L$11 -> 0 | O11: 0 | P11: 0 | Q11: 0 | R11: =SUM(L11:Q11) -> 0 | Z11: 0 | AC11: =$L$86*-1 -> 0 | AF11: =$L$86*-1 -> 0 | AI11: =$L$86*-1 -> 0 | AL11: =$L$86*-1 -> 0 | AN11: 0 | AP11: =$L$86*(1-$C$54)*-1 -> 0 | AS11: =$L$86*(1-$C$54)*-1 -> 0 | AV11: =$L$86*(1-$C$54)*-1 -> 0 | AY11: =$L$86*(1-$C$54)*-1 -> 0 | BA11: 0 | BC11: =$N$89*-1 ->  | BF11: =$N$89*-1 ->  | BI11: =$N$89*-1 ->  | BL11: =$N$89*-1 -> 
B12: Tynning | D12: kr/m3 | F12: kr/m3 | G12: =C12+E12 -> 0 | H12: kr/m3 | K12: Antall 100 m | L12: =L11/100 -> 0 | M12: =M11/100 -> 0 | N12: 0 | O12: 0 | P12: 0 | Q12: 0 | R12: 0 | Z12: 1 | AC12: =$C$7+$C$53-$C$60+AB12 -> 0 | AF12: =$C$7+$C$53-$C$60+AE12 -> 0 | AI12: =$C$7+$C$53-$C$60+AH12 -> 0 | AL12: =$C$7+$C$53-$C$60+AK12 -> 0 | AN12: 1 | AP12: =AO12-$AA$12 -> 0 | AS12: =AR12-$AA$12 -> 0 | AV12: =AU12-$AA$12 -> 0 | AY12: =AX12-$AA$12 -> 0 | BA12: 1 | BC12: =$C$7+$C$53-$C$60+BB12 -> 0 | BF12: =$C$7+$C$53-$C$60+BE12 -> 0 | BI12: =$C$7+$C$53-$C$60+BH12 -> 0 | BL12: =$C$7+$C$53-$C$60+BK12 -> 0
C13: I | D13: II | E13: III | F13: IV | G13: V | K13: kr/time | L13: =E32 -> 0 | M13: =E33 -> 0 | N13: =L13 -> 0 | O13: =M13 -> 0 | P13: =L13 -> 0 | Q13: =M13 -> 0 | R13: 0 | Z13: 2 | AB13: =$W$62/$O$62 ->  | AE13: =$W$62/$O$62 ->  | AH13: =$W$62/$O$62 ->  | AK13: =$W$62/$O$62 ->  | AN13: 2 | AO13: =$W$62/$O$62 ->  | AP13: =AO13-$AA$12 ->  | AR13: =$W$62/$O$62 ->  | AS13: =AR13-$AA$12 ->  | AU13: =$W$62/$O$62 ->  | AV13: =AU13-$AA$12 ->  | AX13: =$W$62/$O$62 ->  | AY13: =AX13-$AA$12 ->  | BA13: 2 | BB13: =($W$62*(1-$C$66))/$O$62 ->  | BE13: =$W$62/$O$62 ->  | BH13: =$W$62/$O$62 ->  | BK13: =$W$62/$O$62 -> 
B14: Areal - hogstklasse | H14: daa | I14: =SUM(C14:G14) -> 0 | K14: min/100 m | L14: =LOOKUP(I47,Grunndata!B41:C56) ->  | M14: =LOOKUP(I47,Grunndata!F41:G56) ->  | N14: =L14 ->  | O14: =M14 ->  | P14: =N14 ->  | Q14: =O14 ->  | Z14: 3 | AC14: 0 | AF14: 0 | AI14: 0 | AL14: 0 | AN14: 3 | AP14: 0 | AS14: 0 | AV14: 0 | AY14: 0 | BA14: 3 | BC14: 0 | BF14: 0 | BI14: 0 | BL14: 0
C15: Planting | E15: Rydding | G15: Tynning | K15: Antall dager | L15: =L10/C32 ->  | M15: =IF(M10=0,0,M10/C33) -> 0 | N15: =N10/C32 ->  | O15: =IF(O10=0,0,O10/C33) -> 0 | P15: =P10/C32 ->  | Q15: =IF(Q10=0,0,Q10/C33) -> 0 | Z15: 4 | AC15: 0 | AF15: 0 | AI15: 0 | AL15: 0 | AN15: 4 | AP15: 0 | AS15: 0 | AV15: 0 | AY15: 0 | BA15: 4 | BC15: 0 | BF15: 0 | BI15: 0 | BL15: 0
B16: Skogkultur - andel | K16: meter spart | L16: =L15*L11 ->  | M16: =M15*M11 -> 0 | O16: 0 | Q16: 0 | Z16: 5 | AC16: 0 | AF16: 0 | AI16: 0 | AL16: 0 | AN16: 5 | AP16: 0 | AS16: 0 | AV16: 0 | AY16: 0 | BA16: 5 | BC16: 0 | BF16: 0 | BI16: 0 | BL16: 0
C17: planter/dag | E17: planter/daa | G17: kr/time | K17: Antall 100 m spart | L17: =L16/100 ->  | M17: =M16/100 -> 0 | O17: 0 | Q17: 0 | Z17: 6 | AC17: 0 | AF17: 0 | AI17: 0 | AL17: 0 | AN17: 6 | AP17: 0 | AS17: 0 | AV17: 0 | AY17: 0 | BA17: 6 | BC17: 0 | BF17: 0 | BI17: 0 | BL17: 0
B18: Planting | K18: Minutter spart | L18: =IF(C5=1,L17*L14,((C46/100*L14)-(E46/100*L14)-(C49/100*Grunndata!C57))*L15) ->  | M18: =IF(C5=1,M17*M14,((C46/100*M14)-(E46/100*M14)-(C49/100*Grunndata!C57))*M15) ->  | N18: =IF(C5=1,N17*N14,((C46/100*N14)-(E46/100*N14)-(C49/100*Grunndata!C57))*N15) ->  | O18: =IF(C5=1,O17*O14,((C46/100*O14)-(E46/100*O14)-(C49/100*Grunndata!C57))*O15) ->  | P18: =IF(C5=1,P17*P14,((C46/100*P14)-(E46/100*P14)-(C49/100*Grunndata!C57))*P15) ->  | Q18: =IF(C5=1,Q17*Q14,((C46/100*Q14)-(E46/100*Q14)-(C49/100*Grunndata!C57))*Q15) ->  | Z18: 7 | AB18: =$W$63/$O$63 ->  | AE18: =$W$63/$O$63 ->  | AH18: =$W$63/$O$63 ->  | AK18: =$W$63/$O$63 ->  | AN18: 7 | AO18: =$W$63/$O$63 ->  | AR18: =$W$63/$O$63 ->  | AU18: =$W$63/$O$63 ->  | AX18: =$W$63/$O$63 ->  | BA18: 7 | BB18: =($W$63*(1-$C$66))/$O$63 ->  | BE18: =$W$63/$O$63 ->  | BH18: =$W$63/$O$63 ->  | BK18: =$W$63/$O$63 -> 
C19: daa/dag | E19: kr/time | K19: Timer spart | L19: =L18/60 ->  | M19: =M18/60 ->  | Z19: 8 | AC19: 0 | AF19: 0 | AI19: 0 | AL19: 0 | AN19: 8 | AP19: 0 | AS19: 0 | AV19: 0 | AY19: 0 | BA19: 8 | BC19: 0 | BF19: 0 | BI19: 0 | BL19: 0
B20: Rydding | K20: Innsparing kr | L20: =L19*L13 ->  | M20: =M19*M13 ->  | Z20: 9 | AC20: 0 | AF20: 0 | AI20: 0 | AL20: 0 | AN20: 9 | AP20: 0 | AS20: 0 | AV20: 0 | AY20: 0 | BA20: 9 | BC20: 0 | BF20: 0 | BI20: 0 | BL20: 0
C21: III | E21: IV | G21: V | Z21: 10 | AB21: =$P$68/$O$68 ->  | AF21: 0 | AI21: 0 | AL21: 0 | AN21: 10 | AP21: 0 | AS21: 0 | AV21: 0 | AY21: 0 | BA21: 10 | BB21: =($P$68*(1-$C$66))/$O$68 ->  | BF21: 0 | BI21: 0 | BL21: 0
B22: Forventet avvirkning | D22: m3 | H22: m3 | I22: =SUM(C22,E22,G22) -> 0 | Z22: 11 | AC22: 0 | AF22: 0 | AI22: 0 | AL22: 0 | AN22: 11 | AP22: 0 | AS22: 0 | AV22: 0 | AY22: 0 | BA22: 11 | BC22: 0 | BF22: 0 | BI22: 0 | BL22: 0
B23: Andel avvirkning | C23: III | E23: IV | G23: V | L23: III | O23: IV | R23: V | V23: Annet | Z23: 12 | AC23: 0 | AF23: 0 | AI23: 0 | AL23: 0 | AN23: 12 | AP23: 0 | AS23: 0 | AV23: 0 | AY23: 0 | BA23: 12 | BC23: 0 | BF23: 0 | BI23: 0 | BL23: 0
B24: Sum | C24: =SUM(C25:C27) -> 0 | D24: =IF(C24=0,"",IF(C24=D25,"","OBS!")) ->  | E24: =SUM(E25:E27) -> 0 | F24: =IF(E24=0,"",IF(E24=F25,"","OBS!")) ->  | G24: =SUM(G25:G27) -> 0 | H24: =IF(G24=0,"",IF(G24=H25,"","OBS!")) ->  | K24: Utkjøring | L24: Lassbærer | M24: Stammelunner | N24: Traktor | O24: Lassbærer | P24: Stammelunner | Q24: Traktor | R24: Lassbærer | S24: Stammelunner | T24: Traktor | U24: Sum | V24: III | W24: IV | X24: V | Y24: sum | Z24: 13 | AC24: 0 | AE24: =$P$68/$O$68 ->  | AI24: 0 | AL24: 0 | AN24: 13 | AP24: 0 | AS24: 0 | AV24: 0 | AY24: 0 | BA24: 13 | BC24: 0 | BE24: =$P$68/$O$68 ->  | BI24: 0 | BL24: 0
B25: før 5 år | D25: 1 | F25: 1 | H25: 1 | K25: m3 | L25: =C22*C36 -> 0 | M25: =C22*C37 -> 0 | N25: =C22*C38 -> 0 | O25: =E22*E36 -> 0 | P25: =E22*E37 -> 0 | Q25: =E22*E38 -> 0 | R25: =G22*G36 -> 0 | S25: =G22*G37 -> 0 | T25: =G22*G38 -> 0 | U25: =SUM(L25:T25) -> 0 | Z25: 14 | AC25: 0 | AF25: 0 | AI25: 0 | AL25: 0 | AN25: 14 | AP25: 0 | AS25: 0 | AV25: 0 | AY25: 0 | BA25: 14 | BC25: 0 | BF25: 0 | BI25: 0 | BL25: 0
B26: 5-10 år | K26: Innspart transp | L26: =C46-E46 -> 0 | M26: =$L$11 -> 0 | N26: =$L$11 -> 0 | O26: 0 | P26: 0 | Q26: 0 | R26: 0 | S26: 0 | T26: 0 | U26: =SUM(L26:T26) -> 0 | Z26: 15 | AB26: =$W$64/$O$64 ->  | AF26: 0 | AH26: =$P$68/$O$68 ->  | AL26: 0 | AN26: 15 | AO26: =$W$64 ->  | AS26: 0 | AV26: 0 | AY26: 0 | BA26: 15 | BB26: =($W$64*(1-$C$66))/$O$64 ->  | BF26: 0 | BH26: =$P$68/$O$68 ->  | BL26: 0
B27: etter 10 år | K27: Antall 100 m | L27: =L26/100 -> 0 | M27: =M26/100 -> 0 | N27: 0 | O27: 0 | P27: 0 | Q27: 0 | R27: =R26/100 -> 0 | S27: =S26/100 -> 0 | T27: =T26/100 -> 0 | U27: 0 | Z27: 16 | AC27: 0 | AF27: 0 | AI27: 0 | AL27: 0 | AN27: 16 | AP27: 0 | AS27: 0 | AV27: 0 | AY27: 0 | BA27: 16 | BC27: 0 | BF27: 0 | BI27: 0 | BL27: 0
B28: Hogst - prosentandel | C28: III | E28: IV | G28: V | K28: kr/time | L28: =E42 -> 0 | M28: =E43 -> 0 | N28: =E44 -> 0 | O28: =L28 -> 0 | P28: =M28 -> 0 | Q28: 0 | R28: =L28 -> 0 | S28: =M28 -> 0 | T28: 0 | Z28: 17 | AC28: 0 | AF28: 0 | AI28: 0 | AL28: 0 | AN28: 17 | AP28: 0 | AS28: 0 | AV28: 0 | AY28: 0 | BA28: 17 | BC28: 0 | BF28: 0 | BI28: 0 | BL28: 0
B29: Hogstmaskin | K29: min/100 m | L29: =LOOKUP(I47,Grunndata!B41:C56) ->  | M29: =LOOKUP(I47,Grunndata!D41:E56) ->  | N29: =M29 ->  | O29: =L29 ->  | R29: =L29 ->  | Z29: 18 | AC29: 0 | AE29: =$W$64/$O$64 ->  | AI29: 0 | AL29: 0 | AN29: 18 | AP29: 0 | AR29: =$W$64 ->  | AV29: 0 | AY29: 0 | BA29: 18 | BC29: 0 | BE29: =$W$64/$O$64 ->  | BI29: 0 | BL29: 0
B30: Motorsag | K30: Antall lass | L30: =L25/C42 ->  | M30: =IF(M25=0,0,M25/C43) -> 0 | N30: =IF(N25=0,0,N25/C44) -> 0 | O30: =O25/C42 ->  | P30: =IF(P25=0,0,P25/C43) -> 0 | Q30: =IF(Q25=0,0,Q25/C44) -> 0 | R30: =R25/C42 ->  | S30: =IF(S25=0,0,S25/C43) -> 0 | T30: =IF(T25=0,0,T25/C44) -> 0 | Z30: 19 | AC30: 0 | AF30: 0 | AI30: 0 | AL30: 0 | AN30: 19 | AP30: 0 | AS30: 0 | AV30: 0 | AY30: 0 | BA30: 19 | BC30: 0 | BF30: 0 | BI30: 0 | BL30: 0
B31: Hogst - produktivitet | C31: m3/dag | E31: kr/time | K31: meter spart | L31: =L30*2*L26 ->  | M31: =M30*2*M26 -> 0 | N31: 0 | P31: 0 | Q31: 0 | S31: 0 | T31: 0 | Z31: 20 | AC31: 0 | AF31: 0 | AH31: =$W$64/$O$64 ->  | AK31: =$P$68/$O$68 ->  | AN31: 20 | AP31: 0 | AS31: 0 | AU31: =$W$64 ->  | AY31: 0 | BA31: 20 | BC31: 0 | BF31: 0 | BH31: =$W$64/$O$64 ->  | BK31: =$P$68/$O$68 -> 
B32: Hogstmaskin | K32: Antall 100 m spart | L32: =L31/100 ->  | M32: =M31/100 -> 0 | N32: 0 | P32: 0 | Q32: 0 | S32: 0 | T32: 0 | Z32: 21 | AF32: 0 | AI32: 0 | AL32: 0 | AN32: 21 | AS32: 0 | AV32: 0 | AY32: 0 | BA32: 21 | BF32: 0 | BI32: 0 | BL32: 0
B33: Motorsag | K33: Minutter spart | L33: =IF(C5=1,L29*L32,((C46/100*L29)-(E46/100*L29)-(C49/100*Grunndata!C57))*L30) ->  | M33: =IF(C5=1,M29*M32,((C46/100*M29)-(E46/100*M29)-(C49/100*Grunndata!C57))*M30) ->  | N33: =IF(C5=1,N29*N32,((C46/100*N29)-(E46/100*N29)-(C49/100*Grunndata!C57))*N30) ->  | O33: =IF(C5=1,O29*O32,((C46/100*O29)-(E46/100*O29)-(C49/100*Grunndata!C57))*O30) ->  | P33: =IF(C5=1,P29*P32,((C46/100*P29)-(E46/100*P29)-(C49/100*Grunndata!C57))*P30) ->  | Q33: =IF(C5=1,Q29*Q32,((C46/100*Q29)-(E46/100*Q29)-(C49/100*Grunndata!C57))*Q30) ->  | R33: =IF(C5=1,R29*R32,((C46/100*R29)-(E46/100*R29)-(C49/100*Grunndata!C57))*R30) ->  | S33: =IF(C5=1,S29*S32,((C46/100*S29)-(E46/100*S29)-(C49/100*Grunndata!C57))*S30) ->  | T33: =IF(C5=1,T29*T32,((C46/100*T29)-(E46/100*T29)-(C49/100*Grunndata!C57))*T30) ->  | Z33: 22 | AF33: 0 | AI33: 0 | AL33: 0 | AN33: 22 | AS33: 0 | AV33: 0 | AY33: 0 | BA33: 22 | BF33: 0 | BI33: 0 | BL33: 0
B34: Utkjøring - prosentandel | C34: III | E34: IV | G34: V | K34: Timer spart | L34: =L33/60 ->  | M34: =M33/60 ->  | Z34: 23 | AF34: 0 | AI34: 0 | AL34: 0 | AN34: 23 | AS34: 0 | AV34: 0 | AY34: 0 | BA34: 23 | BF34: 0 | BI34: 0 | BL34: 0
B35: Sum | C35: =SUM(C36:C39) -> 0 | D35: =IF(C35=0,"",IF(C35=D36,"","OBS!")) ->  | E35: =SUM(E36:E39) -> 0 | F35: =IF(E35=0,"",IF(E35=F36,"","OBS!")) ->  | G35: =SUM(G36:G39) -> 0 | H35: =IF(G35=0,"",IF(G35=H36,"","OBS!")) ->  | K35: Innsparing kr | L35: =L34*L28 ->  | M35: =M34*M28 ->  | V35: =C40*C39*C22 -> 0 | W35: =E40*E39*E22 -> 0 | X35: =G40*G39*G22 -> 0 | Y35: =SUM(V35:X35) -> 0 | Z35: 24 | AF35: 0 | AI35: 0 | AL35: 0 | AN35: 24 | AS35: 0 | AV35: 0 | AY35: 0 | BA35: 24 | BF35: 0 | BI35: 0 | BL35: 0
B36: Lassbærer | D36: 1 | F36: 1 | H36: 1 | Z36: 25 | AF36: 0 | AI36: 0 | AL36: 0 | AN36: 25 | AS36: 0 | AV36: 0 | AY36: 0 | BA36: 25 | BF36: 0 | BI36: 0 | BL36: 0
B37: Stammelunner | U37: =U35+R20 ->  | Z37: 26 | AI37: 0 | AL37: 0 | AN37: 26 | AV37: 0 | AY37: 0 | BA37: 26 | BI37: 0 | BL37: 0
B38: Traktor | K38: Diverse | L38: Adm. | M38: Planting | N38: Ungsk. | O38: sum | Z38: 27 | AI38: 0 | AL38: 0 | AN38: 27 | AV38: 0 | AY38: 0 | BA38: 27 | BI38: 0 | BL38: 0
B39: Annet | K39: dekar | L39: =I14 -> 0 | M39: =L39*C16 -> 0 | N39: =I14*E16 -> 0 | O39: =SUM(L39:N39) -> 0 | Z39: 28 | AI39: 0 | AL39: 0 | AN39: 28 | AV39: 0 | AY39: 0 | BA39: 28 | BI39: 0 | BL39: 0
D40: kr/m3 | F40: kr/m3 | H40: kr/m3 | K40: Innspart transp | L40: =L11 -> 0 | M40: =L40 -> 0 | N40: =L40 -> 0 | O40: =SUM(L40:N40) -> 0 | Z40: 29 | AI40: 0 | AL40: 0 | AN40: 29 | AV40: 0 | AY40: 0 | BA40: 29 | BI40: 0 | BL40: 0
B41: Utkjøring - produktivitet | C41: m3/lass | E41: kr/time | K41: Antall 100 m | L41: =L40/100 -> 0 | M41: =M40/100 -> 0 | N41: 0 | O41: 0 | Z41: 30 | AI41: 0 | AK41: =$W$64/$O$64 ->  | AN41: 30 | AV41: 0 | AX41: =$W$64 ->  | BA41: 30 | BI41: 0 | BK41: =$W$64/$O$64 -> 
B42: Lassbærer | K42: kr/time | L42: =G18 -> 0 | M42: =G18 -> 0 | N42: =E20 -> 0 | O42: 0 | Z42: 31 | AL42: 0 | AN42: 31 | AY42: 0 | BA42: 31 | BL42: 0
B43: Stammelunner | K43: min/100 m | L43: =M14 ->  | M43: =M14 ->  | N43: =M14 ->  | Z43: 32 | AL43: 0 | AN43: 32 | AY43: 0 | BA43: 32 | BL43: 0
B44: Traktor | K44: Antall turer | L44: 52 | M44: =(M39*E18)/1000 -> 0 | N44: =N39/C20 ->  | Z44: 33 | AL44: 0 | AN44: 33 | AY44: 0 | BA44: 33 | BL44: 0
C45: Før vei | E45: Etter vei | K45: meter spart | L45: =L44*L40*2 -> 0 | M45: =M44*M40*2 -> 0 | Z45: 34 | AL45: 0 | AN45: 34 | AY45: 0 | BA45: 34 | BL45: 0
B46: Driftsveilengde i terreng | D46: meter | F46: meter | K46: Antall 100 m spart | L46: =L45/100 -> 0 | M46: =M45/100 -> 0 | Z46: 35 | AL46: 0 | AN46: 35 | AY46: 0 | BA46: 35 | BL46: 0
B47: Terrenghelning (1-4) | D47: =IF(OR(C47="",C47=0),"",IF(C47=1,"0-10 %",IF(C47=2,"10-20 %",IF(C47=3,"20-30 %",IF(C47=4,"30-40 %"))))) ->  | F47: =C47 -> 0 | G47: =C48 -> 0 | H47: =CONCATENATE(F47,G47) -> 00 | I47: =H47+1-1 -> 0 | K47: Minutter spart | L47: =IF(C5=1,L46*L43,((C46/100*L43)-(E46/100*L43)-(C49/100*Grunndata!C57))*L44) ->  | M47: =IF(C5=1,M46*M43,((C46/100*M43)-(E46/100*M43)-(C49/100*Grunndata!C57))*M44) ->  | N47: =IF(C5=1,N46*N43,((C46/100*N43)-(E46/100*N43)-(C49/100*Grunndata!C57))*N44) ->  | Z47: 36 | AL47: 0 | AN47: 36 | AY47: 0 | BA47: 36 | BL47: 0
B48: Overflatestruktur (1-4) | D48: =IF(OR(C48="",C48=0),"",IF(C48=1,"Meget gode terrengforhold",IF(C48=2,"Gode terrengforhold",IF(C48=3,"Middels gode terrengforhold",IF(C48=4,"Dårlige terrengforhold"))))) ->  | K48: Timer spart | L48: =L47/60 ->  | M48: =M47/60 ->  | Z48: 37 | AL48: 0 | AN48: 37 | AY48: 0 | BA48: 37 | BL48: 0
B49: Veilengde | D49: meter | K49: Innsparing kr | L49: =L48*L42 ->  | M49: =M48*M42 ->  | Z49: 38 | AL49: 0 | AN49: 38 | AY49: 0 | BA49: 38 | BL49: 0
B50: Veikostnad | D50: kr | E50: =C50/C49 ->  | F50: kr/m | Z50: 39 | AL50: 0 | AN50: 39 | AY50: 0 | BA50: 39 | BL50: 0
B51: Kalkulasjonsrentefot | Z51: 40 | AL51: 0 | AN51: 40 | AY51: 0 | BA51: 40 | BL51: 0
B52: Årlig tilvekst i skogen
B53: Bompenger | D53: kr/år | L53: Nullområde | M53: Hogst | N53: Utkjøring | O53: Diverse | P53: Jakt, fiske.. | Q53: Bompenger | R53: Sum
B54: Tilskuddsprosent | K54: Sum innsparing | L54: =P6 -> 0 | M54: =R20 ->  | N54: =U35 ->  | O54: =O49 ->  | P54: =C7 -> 0 | Q54: =C53 -> 0 | R54: =SUM(L54:Q54) -> 
B55: Tilskudd | C55: =C54*C50 -> 0 | D55: kr
B56: Skogfondsmidler på konto | D56: kr
B57: Potensielt forskudd | C57: =((E9*C22*C25)+(C9*E22*E25)+(C9*G22*G25))*0.4 -> 0 | D57: kr | L57: Vei
B58: Forskudd på skogfond | D58: kr | F58: Maksimalt | G58: =$C$50-$C$55-$C$56 -> 0 | K58: Kostnader | L58: =C50 -> 0
B59: Andre midler veikostnad | C59: =C50-C55-C56-C58 -> 0 | D59: kr | E59: =IF(C59<0, "OBS! KAN IKKE VÆRE NEGATIV","") ->  | S59: Hogst og utkjøring
B60: Vedlikehold | D60: kr/år | E60: =C60/C49 ->  | F60: kr/m | K60: Diskonteringsfaktor | P60: Andel avvirkning h kl | S60: Nåverdi av innsparingene inkl tilvekst
B61: Avskrivningstid | D61: =IF(OR(C61="",C61=0),"",IF(C61=1,"20 år",IF(C61=2,"25 år",IF(C61=3,"30 år",IF(C61=4,"40 år"))))) ->  | E61: =IF($C$5=2,"IKKE SKOGFOND PÅ VEDLIKEHOLD AV TRAKTORVEI","") ->  | K61: periode | L61: diskontering | M61: rente | N61: tilvekst | O61: disk. faktor | P61: III | Q61: IV | R61: V | S61: III | T61: IV | U61: V | V61: Nullomr | W61: sum
B62: Vedlikehold - nåverdi | C62: =ROUND(M86,-1) ->  | D62: kr | E62: =IF($E$60>4,$C$62-$G$62,0) ->  | G62: =IF(C5=1,(C62*(4/E60)),C62) ->  | K62: 0-5 år | L62: 2 | M62: =C51 -> 0 | N62: =C52 -> 0 | O62: =POWER(1+M62,L62*-1) -> 1 | P62: =C25 -> 0 | Q62: =E25 -> 0 | R62: =G25 -> 0 | S62: =((($L$20+M$20+L$35+M$35+N$35+$V$35)*P62*O62)*((1+N62)^L62)) ->  | T62: =(($N$20+$O$20+$O$35+$P$35+$Q$35+$W$35)*Q62*O62*((1+N62)^L62)) ->  | U62: =(($P$20+$Q$20+$R$35+$S$35+$T$35+$X$35)*$R62*$O62*((1+$N62)^$L62)) ->  | V62: =$P$6*$R62*$O62*((1+$N62)^$L62) -> 0 | W62: =SUM(S62:V62) -> 
B63: Vedlikehold - bruk av skogfond | D63: kr | E63: =IF(C5=2,"",IF(C63>G63,"OBS! OVER MAKSNIVÅ","")) ->  | F63: Maksimalt | G63: =IF(C60=0,0,IF(C5=1,(ROUND(G62,-1)),0)) -> 0 | K63: 5-10 år | L63: 7 | M63: =M62 -> 0 | N63: =N62 -> 0 | O63: =POWER(1+M63,L63*-1) -> 1 | P63: =C26 -> 0 | Q63: =E26 -> 0 | R63: =G26 -> 0 | S63: =((($L$20+M$20+L$35+M$35+N$35+$V$35)*P63*O63)*((1+N63)^L63)) ->  | T63: =(($N$20+$O$20+$O$35+$P$35+$Q$35+$W$35)*Q63*O63*((1+N63)^L63)) ->  | U63: =(($P$20+$Q$20+$R$35+$S$35+$T$35+$X$35)*$R63*$O63*((1+$N63)^$L63)) ->  | V63: =$P$6*$R63*$O63*((1+$N63)^$L63) -> 0 | W63: =SUM(S63:V63) -> 
B64: Andre midler vedlikehold | C64: =C62-C63 ->  | D64: kr | E64: =IF($C$63>$C$62,"OBS! OVER BEHOVET FOR VEDLIKEHOLD","") ->  | K64: over 10 år | L64: =IF(C61=1,15,IF(C61=2,18,IF(C61=3,20,IF(C61=4,30)))) -> FALSE | M64: =M62 -> 0 | N64: =N62 -> 0 | O64: 1 | P64: =C27 -> 0 | Q64: =E27 -> 0 | R64: =G27 -> 0 | V64: 0
B65: Skattefriandel av skogfond | C65: 0.85 | S65: =SUM(S62:S64) ->  | T65: =SUM(T62:T64) ->  | U65: =SUM(U62:U64) ->  | V65: =SUM(V62:V64) -> 0 | W65: =SUM(S65:V65) -> 
B66: Marginal skattesats | K66: Administrasjon, planting og ungskogpleie - Nåverdi
H67: =IF(OR(C61="",C61=0),"",IF(C61=1,"20",IF(C61=2,"25",IF(C61=3,"30",IF(C61=4,"40"))))) ->  | K67: periode | L67: diskontering | M67: rente | N67: tilvekst | O67: disk. faktor | P67: Nåverdi av innsp
C68: Før tilskudd og skogfond | F68: Etter tilskudd og skogfond | K68: =H67 ->  | L68: =IF(C61=1,10,IF(C61=2,13,IF(C61=3,15,IF(C61=4,20)))) -> FALSE | M68: =M63 -> 0 | N68: =N62 -> 0 | O68: =POWER(1+M68,L68*-1) -> 1 | P68: =O49*O68 -> 
K69: Jakt, fiske, friluftsliv og bompenger
B70: Nåverdi innsparing (a) | C70: =IF(OR($C$63>$G$63,$C$63>$C$62),"",L88) ->  | D70: kr | G70: =IF(OR($C$63>$G$63,$C$63>$C$62),"",N88) ->  | H70: kr | K70: periode | L70: kapitalisering | M70: rente | N70: tilvekst | O70: kapit. faktor | P70: Jakt, fiske, frilu | Q70: Bompenger | R70: Sum
C71: =IF(OR($C$63>$G$63,$C$63>$C$62),"",L88/I22) ->  | D71: kr/m3 | G71: =IF(OR($C$63>$G$63,$C$63>$C$62),"",N88/I22) ->  | H71: kr/m3 | K71: =K68 ->  | L71: =K71 ->  | M71: =M62 -> 0 | N71: =N62 -> 0 | O71: =(((1+M71)^L71)-1)/(M71*(1+M71)^L71) ->  | P71: =C7*O71 ->  | Q71: =O71*C53 ->  | R71: =SUM(P71:Q71) -> 
B72: Nåverdi kostnader (b) | C72: =IF(OR($C$63>$G$63,$C$63>$C$62),"",L89) ->  | D72: kr | G72: =IF(OR($C$63>$G$63,$C$63>$C$62),"",(L86-((((N92)*N95)+(((C56+C58)*N94*N95)))+(N92*N93)*(1-N95)))+(M86-((C63*N95*(1+N94))))) ->  | H72: kr
C73: =IF(OR($C$63>$G$63,$C$63>$C$62),"",L89/I22) ->  | D73: kr/m3 | G73: =IF(OR($C$63>$G$63,$C$63>$C$62),"",G72/I22) ->  | H73: kr/m3
B74: Kapitalverdi (a-b) | C74: =IF(OR($C$63>$G$63,$C$63>$C$62),"",L90) ->  | D74: kr | G74: =IF(OR($C$63>$G$63,$C$63>$C$62),"",G70-G72) ->  | H74: kr
C75: =IF(OR($C$63>$G$63,$C$63>$C$62),"",C74/I22) ->  | D75: kr/m3 | G75: =IF(OR($C$63>$G$63,$C$63>$C$62),"",G74/I22) ->  | H75: kr/m3
B77: Internrente | C77: =IF(OR($C$61="",$C$61=0),"",IF($C$61=1,AD10,IF($C$61=2,AG10,IF($C$61=3,AJ10,IF($C$61=4,AM10))))) ->  | G77: =IF(OR($C$61="",$C$61=0),"",IF($C$61=1,BD10,IF($C$61=2,BG10,IF($C$61=3,BJ10,IF($C$61=4,BM10))))) -> 
L78: =C70 ->  | M78: =1-0.28 -> 0.72 | N78: =L78*M78 -> 
B83: =Hovedmeny!M18 -> Sist oppdatert: 06.10.2015
K85: Anleggskostnadene | L85: Vei | M85: Vedlikehold | N85: Sum
L86: =C50 -> 0 | M86: =C60*O71 ->  | N86: =SUM(L86:M86) -> 
L87: Før tilskudd | M87: Etter tilskudd | N87: Etter tilskudd og skogfond
K88: Nåverdi innsparing | L88: =W65+P68+R71 ->  | M88: =L88 ->  | N88: =L88 -> 
K89: Nåverdi kostnader | L89: =N86 ->  | M89: =(L86*(1-C54))+M86 ->  | N89: =(L86*N97)+M86 -> 
K90: Kapitalverdi | L90: =L88-L89 ->  | M90: =M88-M89 -> 
M92: =N92 -> 0 | N92: =C50 -> 0 | O92: A | P92: M77
K93: Tilskudd | M93: =100*N93 -> 0 | N93: =C54 -> 0 | O93: T | P93: M78
K94: Skogfond | M94: 85 | N94: 0.85 | O94: k | P94: M79
K95: Marginal skattesats: | M95: =100*N95 -> 0 | N95: =C66 -> 0 | O95: s | P95: M80
K96: Faktor | M96: =((M93/100)+((M94/100*(1-(M93/100))*M95/100)/(1-(M95/100)))) -> 0 | N96: =N92*N95+N92*N94*N95+N92*N93*(1-N95*(1+N94)) -> 0
M97: =M92*M96 -> 0 | N97: =(N92-N96)/N92 -> 
M98: Skoghåndbok

Sheet VedleggAvansert
L2: VEDLEGG TIL LØNNSOMHETSBEREGNING FOR SKOGVEI
B7: Til:
B9: Søkerens navn:
B11: Adresse:
B13: Veiens navn: | W13: Planlegger:
B15: FORUTSETNINGER
B17: Kalkulasjonsrentefot: | S17: =Avansert!C51 -> 0 | V17: Årlig volumtilvekst: | AC17: =Avansert!C52 -> 0
B19: Direkte statstilskudd: | S19: =Avansert!C54 -> 0 | V19: Uttak (m3) i hogstklasse lll: | AC19: =Avansert!C22 -> 0 | AD19: m3
B21: Marginal skattesats: | S21: =Avansert!C66 -> 0 | V21: Uttak (m3) i hogstklasse lV-V: | AC21: =Avansert!E22+Avansert!G22 -> 0 | AD21: m3
B23: Avskrivningstid: | S23: =Avansert!D61 -> 
AA25: Prosentvis fordeling
B26: Fordeling avvirkningskvantum: | Q26: Periode | U26: Tidsrom | Y26: H.kl. III | AB26: H.kl. IV | AD26: H.kl. IV
S27: 1 | U27: 0 - 5 | V27: år | Y27: =Avansert!C25 -> 0 | AB27: =Avansert!E25 -> 0 | AD27: =Avansert!G25 -> 0
S28: 2 | U28: 5 - 10 | V28: år | Y28: =Avansert!C26 -> 0 | AB28: =Avansert!E26 -> 0 | AD28: =Avansert!G26 -> 0
S29: 3 | U29: over 10 | V29: år | Y29: =Avansert!C27 -> 0 | AB29: =Avansert!E27 -> 0 | AD29: =Avansert!G27 -> 0
B31: LØNNSOMHET
T33: Før tilskudd og skogfond | Y33: Etter tilskudd og skogfond
U34: kr | W34: kr/m3 | AB34: Totalt (kr) | AD34: kr/m3
B35: Nåverdien innsparinger: | U35: =Avansert!C70 ->  | W35: =Avansert!C71 ->  | AB35: =Avansert!G70 ->  | AD35: =Avansert!G71 -> 
B36: Nåverdi kostnader: | U36: =Avansert!C72 ->  | W36: =Avansert!C73 ->  | AB36: =Avansert!G72 ->  | AD36: =Avansert!G73 -> 
B37: Kapitalverdi: | U37: =Avansert!C74 ->  | W37: =Avansert!C75 ->  | AB37: =Avansert!G74 ->  | AD37: =Avansert!G75 -> 
B40: KOMMENTARER
B53: Sted/dato: | W53: Underskrift:

Sheet Enkel
A1: A
C2: Enkel lønnsomhetsberegning av skogsveier | L2: Inntekt
L3: Sagtømmer | M3: Massev. | N3: sum | O3: Kostnad | P3: Innsparing
B4: Velg veitype
C5: 1
C6: I | D6: II | E6: III | F6: IV | G6: V | K6: Nullområde | L6: =C42*((E9+G9)*C39) -> 0 | M6: =E42*C9*C39 -> 0 | N6: =SUM(L6:M6) -> 0 | O6: =(C44+E44)*((C9+E9+G9)*C39) -> 0 | P6: =L6-O6 -> 0
B7: Areal - hogstklasse | H7: daa | I7: =SUM(C7:G7) -> 0 | AC7: Før tilskudd | AF7: Før tilskudd | AI7: Før tilskudd | AL7: Før tilskudd | AP7: Etter tilskudd | AS7: Etter tilskudd | AV7: Etter tilskudd | AY7: Etter tilskudd | BC7: Etter tilskudd og skogfond | BF7: Etter tilskudd og skogfond | BI7: Etter tilskudd og skogfond | BL7: Etter tilskudd og skogfond
C8: III | E8: IV | G8: V | L8: III | N8: IV | P8: V | AB8: 20år | AC8: 20år | AD8: 20år | AE8: 25år | AF8: 25år | AG8: 25år | AH8: 30år | AI8: 30år | AJ8: 30år | AK8: 40år | AL8: 40år | AM8: 40år | AO8: 20år | AP8: 20år | AQ8: 20år | AR8: 25år | AS8: 25år | AT8: 25år | AU8: 30år | AV8: 30år | AW8: 30år | AX8: 40år | AY8: 40år | AZ8: 40år | BB8: 20år | BC8: 20år | BD8: 20år | BE8: 25år | BF8: 25år | BG8: 25år | BH8: 30år | BI8: 30år | BJ8: 30år | BK8: 40år | BL8: 40år | BM8: 40år
B9: Forventet avvirkning | D9: m3 | F9: m3 | H9: m3 | I9: =SUM(C9,E9,G9) -> 0 | K9: Hogst | L9: Hogstmaskin | M9: Motorsag | N9: Hogstmaskin | O9: Motorsag | P9: Hogstmaskin | Q9: Motorsag | R9: sum | AD9: int.rente | AG9: int.rente | AJ9: int.rente | AM9: int.rente | AO9: Etter tilskudd | AQ9: int.rente | AT9: int.rente | AW9: int.rente | AZ9: int.rente | BB9: Etter tilskudd | BD9: int.rente | BG9: int.rente | BJ9: int.rente | BM9: int.rente
B10: Andel avvirkning | C10: III | E10: IV | G10: V | K10: m3 | L10: =C9*C53 -> 0 | M10: =C9*C54 -> 0 | N10: =E9*E53 -> 0 | O10: =E9*E54 -> 0 | P10: =G9*G53 -> 0 | Q10: =G9*G54 -> 0 | R10: =SUM(L10:Q10) -> 0 | AA10: Vedlikehold | AB10: Innsparing | AC10: Int.rente | AD10: =IF($L$86=0,"",IRR(AC11:AC31)) ->  | AE10: Innsparing | AF10: Int.rente | AG10: =IF($L$86=0,"",IRR(AF11:AF36)) ->  | AH10: Innsparing | AI10: Int.rente | AJ10: =IF($L$86=0,"",IRR(AI11:AI41)) ->  | AK10: Innsparing | AL10: Int.rente | AM10: =IF($L$86=0,"",IRR(AL11:AL51)) ->  | AO10: Innsparing | AP10: Int.rente | AQ10: =IF($L$86=0,"",IRR(AP11:AP31)) ->  | AR10: Innsparing | AS10: Int.rente | AT10: =IF($L$10=0,"",IRR(AS11:AS36)) ->  | AU10: Innsparing | AV10: Int.rente | AW10: =IF($L$10=0,"",IRR(AV11:AV41)) ->  | AX10: Innsparing | AY10: Int.rente | AZ10: =IF($L$10=0,"",IRR(AY11:AY51)) ->  | BB10: Innsparing | BC10: Int.rente | BD10: =IF($L$86=0,"",IRR(BC11:BC31)) ->  | BE10: Innsparing | BF10: Int.rente | BG10: =IF($L$10=0,"",IRR(BF11:BF36)) ->  | BH10: Innsparing | BI10: Int.rente | BJ10: =IF($L$10=0,"",IRR(BI11:BI41)) ->  | BK10: Innsparing | BL10: Int.rente | BM10: =IF($L$10=0,"",IRR(BL11:BL51)) -> 
B11: Sum | C11: =SUM(C12:C14) -> 0 | D11: =IF(C11=0,"",IF(C11=D12,"","OBS!")) ->  | E11: =SUM(E12:E14) -> 0 | F11: =IF(E11=0,"",IF(E11=F12,"","OBS!")) ->  | G11: =SUM(G12:G14) -> 0 | H11: =IF(G11=0,"",IF(G11=H12,"","OBS!")) ->  | K11: Innspart transp | L11: =C16-E16 -> 0 | M11: =$L$11 -> 0 | N11: =$L$11 -> 0 | O11: 0 | P11: 0 | Q11: 0 | R11: =SUM(L11:Q11) -> 0 | Z11: 0 | AC11: =$L$86*-1 -> 0 | AF11: =$L$86*-1 -> 0 | AI11: =$L$86*-1 -> 0 | AL11: =$L$86*-1 -> 0 | AN11: 0 | AP11: =$L$86*(1-$C$22)*-1 -> 0 | AS11: =$L$86*(1-$C$22)*-1 -> 0 | AV11: =$L$86*(1-$C$22)*-1 -> 0 | AY11: =$L$86*(1-$C$22)*-1 -> 0 | BA11: 0 | BC11: =$N$89*-1 ->  | BF11: =$N$89*-1 ->  | BI11: =$N$89*-1 ->  | BL11: =$N$89*-1 -> 
B12: før 5 år | D12: 1 | F12: 1 | H12: 1 | K12: Antall 100 m | L12: =L11/100 -> 0 | M12: =M11/100 -> 0 | N12: 0 | O12: 0 | P12: 0 | Q12: 0 | R12: 0 | Z12: 1 | AC12: =$C$40+$C$69-$C$24+AB12 -> 0 | AF12: =$C$40+$C$69-$C$24+AE12 -> 0 | AI12: =$C$40+$C$69-$C$24+AH12 -> 0 | AL12: =$C$40+$C$69-$C$24+AK12 -> 0 | AN12: 1 | AP12: =AO12-$AA$12 -> 0 | AS12: =AR12-$AA$12 -> 0 | AV12: =AU12-$AA$12 -> 0 | AY12: =AX12-$AA$12 -> 0 | BA12: 1 | BC12: =$C$40+$C$69-$C$24+BB12 -> 0 | BF12: =$C$40+$C$69-$C$24+BE12 -> 0 | BI12: =$C$40+$C$69-$C$24+BH12 -> 0 | BL12: =$C$40+$C$69-$C$24+BK12 -> 0
B13: 5-10 år | K13: kr/time | L13: =E56 -> 1200 | M13: =E57 -> 450 | N13: =L13 -> 1200 | O13: =M13 -> 450 | P13: =L13 -> 1200 | Q13: =M13 -> 450 | R13: 4950 | Z13: 2 | AB13: =$W$62/$O$62 ->  | AE13: =$W$62/$O$62 ->  | AH13: =$W$62/$O$62 ->  | AK13: =$W$62/$O$62 ->  | AN13: 2 | AO13: =$W$62/$O$62 ->  | AP13: =AO13-$AA$12 ->  | AR13: =$W$62/$O$62 ->  | AS13: =AR13-$AA$12 ->  | AU13: =$W$62/$O$62 ->  | AV13: =AU13-$AA$12 ->  | AX13: =$W$62/$O$62 ->  | AY13: =AX13-$AA$12 ->  | BA13: 2 | BB13: =($W$62*(1-$C$25))/$O$62 ->  | BE13: =$W$62/$O$62 ->  | BH13: =$W$62/$O$62 ->  | BK13: =$W$62/$O$62 -> 
B14: etter 10 år | K14: min/100 m | L14: =LOOKUP(I17,GrunndataEnkel!B41:C56) ->  | M14: =LOOKUP(I17,GrunndataEnkel!F41:G56) ->  | N14: =L14 ->  | O14: =M14 ->  | P14: =N14 ->  | Q14: =O14 ->  | Z14: 3 | AC14: 0 | AF14: 0 | AI14: 0 | AL14: 0 | AN14: 3 | AP14: 0 | AS14: 0 | AV14: 0 | AY14: 0 | BA14: 3 | BC14: 0 | BF14: 0 | BI14: 0 | BL14: 0
C15: Før vei | E15: Etter vei | K15: Antall dager | L15: =L10/C56 -> 0 | M15: =M10/C57 -> 0 | N15: =N10/C56 -> 0 | O15: =O10/C57 -> 0 | P15: =P10/C56 -> 0 | Q15: =Q10/C57 -> 0 | R15: 0 | Z15: 4 | AC15: 0 | AF15: 0 | AI15: 0 | AL15: 0 | AN15: 4 | AP15: 0 | AS15: 0 | AV15: 0 | AY15: 0 | BA15: 4 | BC15: 0 | BF15: 0 | BI15: 0 | BL15: 0
B16: Driftsveilengde i terreng | D16: meter | F16: meter | K16: meter spart | L16: =L15*L11 -> 0 | M16: =M15*M11 -> 0 | N16: 0 | O16: 0 | P16: 0 | Q16: 0 | R16: 0 | Z16: 5 | AC16: 0 | AF16: 0 | AI16: 0 | AL16: 0 | AN16: 5 | AP16: 0 | AS16: 0 | AV16: 0 | AY16: 0 | BA16: 5 | BC16: 0 | BF16: 0 | BI16: 0 | BL16: 0
B17: Terrenghelning (1-4) | D17: =IF(OR(C17="",C17=0),"",IF(C17=1,"0-10 %",IF(C17=2,"10-20 %",IF(C17=3,"20-30 %",IF(C17=4,"30-40 %"))))) ->  | F17: =C17 -> 0 | G17: =C18 -> 0 | H17: =CONCATENATE(F17,G17) -> 00 | I17: =H17+1-1 -> 0 | K17: Antall 100 m spart | L17: =L16/100 -> 0 | M17: =M16/100 -> 0 | N17: 0 | O17: 0 | P17: 0 | Q17: 0 | R17: 0 | Z17: 6 | AC17: 0 | AF17: 0 | AI17: 0 | AL17: 0 | AN17: 6 | AP17: 0 | AS17: 0 | AV17: 0 | AY17: 0 | BA17: 6 | BC17: 0 | BF17: 0 | BI17: 0 | BL17: 0
B18: Overflatestruktur (1-4) | D18: =IF(OR(C18="",C18=0),"",IF(C18=1,"Meget gode terrengforhold",IF(C18=2,"Gode terrengforhold",IF(C18=3,"Middels gode terrengforhold",IF(C18=4,"Dårlige terrengforhold"))))) ->  | K18: Minutter spart | L18: =IF(C5=1,L17*L14,((C16/100*L14)-(E16/100*L14)-(C19/100*GrunndataEnkel!C57))*L15) ->  | M18: =IF(C5=1,M17*M14,((C16/100*M14)-(E16/100*M14)-(C19/100*GrunndataEnkel!C57))*M15) ->  | N18: =IF(C5=1,N17*N14,((C16/100*N14)-(E16/100*N14)-(C19/100*GrunndataEnkel!C57))*N15) ->  | O18: =IF(C5=1,O17*O14,((C16/100*O14)-(E16/100*O14)-(C19/100*GrunndataEnkel!C57))*O15) ->  | P18: =IF(C5=1,P17*P14,((C16/100*P14)-(E16/100*P14)-(C19/100*GrunndataEnkel!C57))*P15) ->  | Q18: =IF(C5=1,Q17*Q14,((C16/100*Q14)-(E16/100*Q14)-(C19/100*GrunndataEnkel!C57))*Q15) ->  | Z18: 7 | AB18: =$W$63/$O$63 ->  | AE18: =$W$63/$O$63 ->  | AH18: =$W$63/$O$63 ->  | AK18: =$W$63/$O$63 ->  | AN18: 7 | AO18: =$W$63/$O$63 ->  | AR18: =$W$63/$O$63 ->  | AU18: =$W$63/$O$63 ->  | AX18: =$W$63/$O$63 ->  | BA18: 7 | BB18: =($W$63*(1-$C$25))/$O$63 ->  | BE18: =$W$63/$O$63 ->  | BH18: =$W$63/$O$63 ->  | BK18: =$W$63/$O$63 -> 
B19: Veilengde | D19: meter | K19: Timer spart | L19: =L18/60 ->  | M19: =M18/60 ->  | Z19: 8 | AC19: 0 | AF19: 0 | AI19: 0 | AL19: 0 | AN19: 8 | AP19: 0 | AS19: 0 | AV19: 0 | AY19: 0 | BA19: 8 | BC19: 0 | BF19: 0 | BI19: 0 | BL19: 0
B20: Veikostnad | D20: kr | E20: =C20/C19 ->  | F20: kr/m | K20: Innsparing kr | L20: =L19*L13 ->  | M20: =M19*M13 ->  | Z20: 9 | AC20: 0 | AF20: 0 | AI20: 0 | AL20: 0 | AN20: 9 | AP20: 0 | AS20: 0 | AV20: 0 | AY20: 0 | BA20: 9 | BC20: 0 | BF20: 0 | BI20: 0 | BL20: 0
B21: Kalkulasjonsrentefot | Z21: 10 | AB21: =$P$68/$O$68 ->  | AF21: 0 | AI21: 0 | AL21: 0 | AN21: 10 | AP21: 0 | AS21: 0 | AV21: 0 | AY21: 0 | BA21: 10 | BB21: =($P$68*(1-$C$25))/$O$68 ->  | BF21: 0 | BI21: 0 | BL21: 0
B22: Tilskuddsprosent | Z22: 11 | AC22: 0 | AF22: 0 | AI22: 0 | AL22: 0 | AN22: 11 | AP22: 0 | AS22: 0 | AV22: 0 | AY22: 0 | BA22: 11 | BC22: 0 | BF22: 0 | BI22: 0 | BL22: 0
B23: Tilskudd | C23: =C22*C20 -> 0 | D23: kr | L23: III | O23: IV | R23: V | V23: Annet | Z23: 12 | AC23: 0 | AF23: 0 | AI23: 0 | AL23: 0 | AN23: 12 | AP23: 0 | AS23: 0 | AV23: 0 | AY23: 0 | BA23: 12 | BC23: 0 | BF23: 0 | BI23: 0 | BL23: 0
B24: Vedlikehold | D24: kr/år | E24: =C24/C19 ->  | F24: kr/m | K24: Utkjøring | L24: Lassbærer | M24: Stammelunner | N24: Traktor | O24: Lassbærer | P24: Stammelunner | Q24: Traktor | R24: Lassbærer | S24: Stammelunner | T24: Traktor | U24: Sum | V24: III | W24: IV | X24: V | Y24: sum | Z24: 13 | AC24: 0 | AE24: =$P$68/$O$68 ->  | AI24: 0 | AL24: 0 | AN24: 13 | AP24: 0 | AS24: 0 | AV24: 0 | AY24: 0 | BA24: 13 | BC24: 0 | BE24: =$P$68/$O$68 ->  | BI24: 0 | BL24: 0
B25: Marginal skattesats | K25: m3 | L25: =C9*C59 -> 0 | M25: =C9*C60 -> 0 | N25: =C9*C61 -> 0 | O25: =E9*E59 -> 0 | P25: =E9*E60 -> 0 | Q25: =E9*E61 -> 0 | R25: =G9*G59 -> 0 | S25: =G9*G60 -> 0 | T25: =G9*G61 -> 0 | U25: =SUM(L25:T25) -> 0 | Z25: 14 | AC25: 0 | AF25: 0 | AI25: 0 | AL25: 0 | AN25: 14 | AP25: 0 | AS25: 0 | AV25: 0 | AY25: 0 | BA25: 14 | BC25: 0 | BF25: 0 | BI25: 0 | BL25: 0
B26: Avskrivningstid | D26: =IF(OR(C26="",C26=0),"",IF(C26=1,"20 år",IF(C26=2,"25 år",IF(C26=3,"30 år",IF(C26=4,"40 år"))))) ->  | H26: =IF(OR(C26="",C26=0),"",IF(C26=1,"20",IF(C26=2,"25",IF(C26=3,"30",IF(C26=4,"40"))))) ->  | K26: Innspart transp | L26: =C16-E16 -> 0 | M26: =$L$11 -> 0 | N26: =$L$11 -> 0 | O26: 0 | P26: 0 | Q26: 0 | R26: 0 | S26: 0 | T26: 0 | U26: =SUM(L26:T26) -> 0 | Z26: 15 | AB26: =$W$64/$O$64 ->  | AF26: 0 | AH26: =$P$68/$O$68 ->  | AL26: 0 | AN26: 15 | AO26: =$W$64 ->  | AS26: 0 | AV26: 0 | AY26: 0 | BA26: 15 | BB26: =($W$64*(1-$C$25))/$O$64 ->  | BF26: 0 | BH26: =$P$68/$O$68 ->  | BL26: 0
K27: Antall 100 m | L27: =L26/100 -> 0 | M27: =M26/100 -> 0 | N27: 0 | O27: 0 | P27: 0 | Q27: 0 | R27: 0 | S27: 0 | T27: 0 | U27: 0 | Z27: 16 | AC27: 0 | AF27: 0 | AI27: 0 | AL27: 0 | AN27: 16 | AP27: 0 | AS27: 0 | AV27: 0 | AY27: 0 | BA27: 16 | BC27: 0 | BF27: 0 | BI27: 0 | BL27: 0
C28: Før tilskudd og skogfond | F28: Etter tilskudd og skogfond | K28: kr/time | L28: =E65 -> 1000 | M28: =E66 -> 600 | N28: =E67 -> 500 | O28: =L28 -> 1000 | P28: =M28 -> 600 | Q28: 500 | R28: =L28 -> 1000 | S28: =M28 -> 600 | T28: 500 | Z28: 17 | AC28: 0 | AF28: 0 | AI28: 0 | AL28: 0 | AN28: 17 | AP28: 0 | AS28: 0 | AV28: 0 | AY28: 0 | BA28: 17 | BC28: 0 | BF28: 0 | BI28: 0 | BL28: 0
K29: min/100 m | L29: =LOOKUP(I17,GrunndataEnkel!B41:C56) ->  | M29: =LOOKUP(I17,GrunndataEnkel!D41:E56) ->  | N29: =M29 ->  | O29: =L29 ->  | R29: =L29 ->  | Z29: 18 | AC29: 0 | AE29: =$W$64/$O$64 ->  | AI29: 0 | AL29: 0 | AN29: 18 | AP29: 0 | AR29: =$W$64 ->  | AV29: 0 | AY29: 0 | BA29: 18 | BC29: 0 | BE29: =$W$64/$O$64 ->  | BI29: 0 | BL29: 0
B30: Nåverdi innsparing (a) | C30: =L88 ->  | D30: kr | G30: =N88 ->  | H30: kr | K30: Antall lass | L30: =L25/C65 -> 0 | M30: =M25/C66 -> 0 | N30: =N25/C67 -> 0 | O30: =O25/C65 -> 0 | P30: =P25/C66 -> 0 | Q30: =Q25/C67 -> 0 | R30: =R25/C65 -> 0 | S30: =S25/C66 -> 0 | T30: =T25/C67 -> 0 | U30: 0 | Z30: 19 | AC30: 0 | AF30: 0 | AI30: 0 | AL30: 0 | AN30: 19 | AP30: 0 | AS30: 0 | AV30: 0 | AY30: 0 | BA30: 19 | BC30: 0 | BF30: 0 | BI30: 0 | BL30: 0
C31: =L88/I9 ->  | D31: kr/m3 | G31: =N88/I9 ->  | H31: kr/m3 | K31: meter spart | L31: =L30*2*L26 -> 0 | M31: =M30*2*M26 -> 0 | N31: 0 | O31: 0 | P31: 0 | Q31: 0 | R31: 0 | S31: 0 | T31: 0 | U31: 0 | Z31: 20 | AC31: 0 | AF31: 0 | AH31: =$W$64/$O$64 ->  | AK31: =$P$68/$O$68 ->  | AN31: 20 | AP31: 0 | AS31: 0 | AU31: =$W$64 ->  | AY31: 0 | BA31: 20 | BC31: 0 | BF31: 0 | BH31: =$W$64/$O$64 ->  | BK31: =$P$68/$O$68 -> 
B32: Nåverdi kostnader (b) | C32: =L89 ->  | D32: kr | G32: =(L86-((((N92)*N95)+(((C70+C72)*N94*N95)))+(N92*N93)*(1-N95)))+(M86-((C76*N95*(1+N94)))) ->  | H32: kr | K32: Antall 100 m spart | L32: =L31/100 -> 0 | M32: =M31/100 -> 0 | N32: 0 | O32: 0 | P32: 0 | Q32: 0 | R32: 0 | S32: 0 | T32: 0 | U32: 0 | Z32: 21 | AF32: 0 | AI32: 0 | AL32: 0 | AN32: 21 | AS32: 0 | AV32: 0 | AY32: 0 | BA32: 21 | BF32: 0 | BI32: 0 | BL32: 0
C33: =L89/I9 ->  | D33: kr/m3 | G33: =G32/I9 ->  | H33: kr/m3 | K33: Minutter spart | L33: =IF(C5=1,L29*L32,((C16/100*L29)-(E16/100*L29)-(C19/100*Grunndata!C57))*L30) ->  | M33: =IF(C5=1,M29*M32,((C16/100*M29)-(E16/100*M29)-(C19/100*Grunndata!C57))*M30) ->  | N33: =IF(C5=1,N29*N32,((C16/100*N29)-(E16/100*N29)-(C19/100*Grunndata!C57))*N30) ->  | O33: =IF(C5=1,O29*O32,((C16/100*O29)-(E16/100*O29)-(C19/100*Grunndata!C57))*O30) ->  | P33: =IF(C5=1,P29*P32,((C16/100*P29)-(E16/100*P29)-(C19/100*Grunndata!C57))*P30) ->  | Q33: =IF(C5=1,Q29*Q32,((C16/100*Q29)-(E16/100*Q29)-(C19/100*Grunndata!C57))*Q30) ->  | R33: =IF(C5=1,R29*R32,((C16/100*R29)-(E16/100*R29)-(C19/100*Grunndata!C57))*R30) ->  | S33: =IF(C5=1,S29*S32,((C16/100*S29)-(E16/100*S29)-(C19/100*Grunndata!C57))*S30) ->  | T33: =IF(C5=1,T29*T32,((C16/100*T29)-(E16/100*T29)-(C19/100*Grunndata!C57))*T30) ->  | Z33: 22 | AF33: 0 | AI33: 0 | AL33: 0 | AN33: 22 | AS33: 0 | AV33: 0 | AY33: 0 | BA33: 22 | BF33: 0 | BI33: 0 | BL33: 0
B34: Kapitalverdi (a-b) | C34: =L90 ->  | D34: kr | G34: =G30-G32 ->  | H34: kr | K34: Timer spart | L34: =L33/60 ->  | M34: =M33/60 ->  | Z34: 23 | AF34: 0 | AI34: 0 | AL34: 0 | AN34: 23 | AS34: 0 | AV34: 0 | AY34: 0 | BA34: 23 | BF34: 0 | BI34: 0 | BL34: 0
C35: =C34/I9 ->  | D35: kr/m3 | G35: =G34/I9 ->  | H35: kr/m3 | K35: Innsparing kr | L35: =L34*L28 ->  | M35: =M34*M28 ->  | V35: =C63*C62*C9 -> 0 | W35: =E63*E62*E9 -> 0 | X35: =G63*G62*G9 -> 0 | Y35: =SUM(V35:X35) -> 0 | Z35: 24 | AF35: 0 | AI35: 0 | AL35: 0 | AN35: 24 | AS35: 0 | AV35: 0 | AY35: 0 | BA35: 24 | BF35: 0 | BI35: 0 | BL35: 0
Z36: 25 | AF36: 0 | AI36: 0 | AL36: 0 | AN36: 25 | AS36: 0 | AV36: 0 | AY36: 0 | BA36: 25 | BF36: 0 | BI36: 0 | BL36: 0
B37: Internrente | C37: =IF(OR($C$26="",$C$26=0),"",IF($C$26=1,AD10,IF($C$26=2,AG10,IF($C$26=3,AJ10,IF($C$26=4,AM10))))) ->  | G37: =IF(OR($C$26="",$C$26=0),"",IF($C$26=1,BD10,IF($C$26=2,BG10,IF($C$26=3,BJ10,IF($C$26=4,BM10))))) ->  | U37: =U35+R20 ->  | Z37: 26 | AI37: 0 | AL37: 0 | AN37: 26 | AV37: 0 | AY37: 0 | BA37: 26 | BI37: 0 | BL37: 0
K38: Diverse | L38: Adm. | M38: Planting | N38: Ungsk. | O38: sum | Z38: 27 | AI38: 0 | AL38: 0 | AN38: 27 | AV38: 0 | AY38: 0 | BA38: 27 | BI38: 0 | BL38: 0
B39: Andel utilgjeng uten vei | C39: 0 | K39: dekar | L39: =I7 -> 0 | M39: =L39*C47 -> 0 | N39: =I7*E47 -> 0 | O39: =SUM(L39:N39) -> 0 | Z39: 28 | AI39: 0 | AL39: 0 | AN39: 28 | AV39: 0 | AY39: 0 | BA39: 28 | BI39: 0 | BL39: 0
B40: Jakt, fiske, friluftsliv o.a. | D40: kr/år | K40: Innspart transp | L40: =L11 -> 0 | M40: =L40 -> 0 | N40: =L40 -> 0 | O40: =SUM(L40:N40) -> 0 | Z40: 29 | AI40: 0 | AL40: 0 | AN40: 29 | AV40: 0 | AY40: 0 | BA40: 29 | BI40: 0 | BL40: 0
C41: Sagtømmer | E41: Massevirke | K41: Antall 100 m | L41: =L40/100 -> 0 | M41: =M40/100 -> 0 | N41: 0 | O41: 0 | Z41: 30 | AI41: 0 | AK41: =$W$64/$O$64 ->  | AN41: 30 | AV41: 0 | AX41: =$W$64 ->  | BA41: 30 | BI41: 0 | BK41: =$W$64/$O$64 -> 
B42: Tømmerpriser | C42: 450 | D42: kr/m3 | E42: 250 | F42: kr/m3 | K42: kr/time | L42: =G49 -> 400 | M42: =G49 -> 400 | N42: =E51 -> 450 | O42: 1250 | Z42: 31 | AL42: 0 | AN42: 31 | AY42: 0 | BA42: 31 | BL42: 0
B43: Driftspriser | C43: Hogst | E43: Utkjøring | G43: Sum | K43: min/100 m | L43: =M14 ->  | M43: =M14 ->  | N43: =M14 ->  | Z43: 32 | AL43: 0 | AN43: 32 | AY43: 0 | BA43: 32 | BL43: 0
B44: Slutthogst | C44: 60 | D44: kr/m3 | E44: 60 | F44: kr/m3 | G44: =C44+E44 -> 120 | H44: kr/m3 | K44: Antall turer | L44: 52 | M44: =(M39*E49)/1000 -> 0 | N44: =N39/C51 -> 0 | O44: 52 | Z44: 33 | AL44: 0 | AN44: 33 | AY44: 0 | BA44: 33 | BL44: 0
B45: Tynning | C45: 90 | D45: kr/m3 | E45: 100 | F45: kr/m3 | G45: =C45+E45 -> 190 | H45: kr/m3 | K45: meter spart | L45: =L44*L40*2 -> 0 | M45: =M44*M40*2 -> 0 | N45: 0 | O45: 0 | Z45: 34 | AL45: 0 | AN45: 34 | AY45: 0 | BA45: 34 | BL45: 0
C46: Planting | E46: Rydding | G46: Tynning | K46: Antall 100 m spart | L46: =L45/100 -> 0 | M46: =M45/100 -> 0 | N46: 0 | O46: 0 | Z46: 35 | AL46: 0 | AN46: 35 | AY46: 0 | BA46: 35 | BL46: 0
B47: Skogkultur - andel | C47: =ForutsetningEnkel!C12 -> 0.3 | E47: =ForutsetningEnkel!E12 -> 0.1 | G47: =ForutsetningEnkel!G12 -> 0.2 | K47: Minutter spart | L47: =IF(C5=1,L46*L43,((C16/100*L43)-(E16/100*L43)-(C19/100*Grunndata!C57))*L44) ->  | M47: =IF(C5=1,M46*M43,((C16/100*M43)-(E16/100*M43)-(C19/100*Grunndata!C57))*M44) ->  | N47: =IF(C5=1,N46*N43,((C16/100*N43)-(E16/100*N43)-(C19/100*Grunndata!C57))*N44) ->  | Z47: 36 | AL47: 0 | AN47: 36 | AY47: 0 | BA47: 36 | BL47: 0
C48: planter/dag | E48: planter/daa | G48: kr/time | K48: Timer spart | L48: =L47/60 ->  | M48: =M47/60 ->  | Z48: 37 | AL48: 0 | AN48: 37 | AY48: 0 | BA48: 37 | BL48: 0
B49: Planting | C49: =ForutsetningEnkel!C15 -> 1000 | E49: =ForutsetningEnkel!E15 -> 250 | G49: =ForutsetningEnkel!G15 -> 400 | K49: Innsparing kr | L49: =L48*L42 ->  | M49: =M48*M42 ->  | Z49: 38 | AL49: 0 | AN49: 38 | AY49: 0 | BA49: 38 | BL49: 0
C50: daa/dag | E50: kr/time | Z50: 39 | AL50: 0 | AN50: 39 | AY50: 0 | BA50: 39 | BL50: 0
B51: Rydding | C51: =ForutsetningEnkel!C18 -> 7 | E51: =ForutsetningEnkel!E18 -> 450 | Z51: 40 | AL51: 0 | AN51: 40 | AY51: 0 | BA51: 40 | BL51: 0
B52: Hogst - prosentandel | C52: III | E52: IV | G52: V
B53: Hogstmaskin | C53: 1 | E53: 1 | G53: 1 | L53: Nullområde | M53: Hogst | N53: Utkjøring | O53: Diverse | P53: Jakt, fiske.. | Q53: Bompenger | R53: Sum
B54: Motorsag | C54: 0 | E54: 0 | G54: 0 | K54: Sum innsparing | L54: =P6 -> 0 | M54: =R20 ->  | N54: =U35 ->  | O54: =O49 ->  | P54: =C40 -> 0 | Q54: =C69 -> 0 | R54: =SUM(L54:Q54) -> 
B55: Hogst - produktivitet | C55: m3/dag | E55: kr/time
B56: Hogstmaskin | C56: =ForutsetningEnkel!C25 -> 150 | E56: =ForutsetningEnkel!E25 -> 1200
B57: Motorsag | C57: 15 | E57: =E51 -> 450 | L57: Vei
B58: Utkjøring - prosentandel | C58: III | E58: IV | G58: V | K58: Kostnader | L58: =C20 -> 0
B59: Lassbærer | C59: 1 | E59: 1 | G59: 1 | S59: Hogst og utkjøring
B60: Stammelunner | C60: 0 | E60: 0 | G60: 0 | K60: Diskonteringsfaktor | P60: Andel avvirkning h kl | S60: Nåverdi av innsparingene inkl tilvekst
B61: Traktor | C61: 0 | E61: 0 | G61: 0 | K61: periode | L61: diskontering | M61: rente | N61: tilvekst | O61: disk. faktor | P61: III | Q61: IV | R61: V | S61: III | T61: IV | U61: V | V61: Nullomr | W61: sum
B62: Annet | C62: 0 | E62: 0 | G62: 0 | K62: 0-5 år | L62: 2 | M62: =C21 -> 0 | N62: =C68 -> 0.04 | O62: =POWER(1+M62,L62*-1) -> 1 | P62: =C12 -> 0 | Q62: =E12 -> 0 | R62: =G12 -> 0 | S62: =((($L$20+M$20+L$35+M$35+N$35+$V$35)*P62*O62)*((1+N62)^L62)) ->  | T62: =(($N$20+$O$20+$O$35+$P$35+$Q$35+$W$35)*Q62*O62*((1+N62)^L62)) ->  | U62: =(($P$20+$Q$20+$R$35+$S$35+$T$35+$X$35)*$R62*$O62*((1+$N62)^$L62)) ->  | V62: =$P$6*$R62*$O62*((1+$N62)^$L62) -> 0 | W62: =SUM(S62:V62) -> 
C63: 0 | D63: kr/m3 | E63: 0 | F63: kr/m3 | G63: 0 | H63: kr/m3 | K63: 5-10 år | L63: 7 | M63: =M62 -> 0 | N63: =N62 -> 0.04 | O63: =POWER(1+M63,L63*-1) -> 1 | P63: =C13 -> 0 | Q63: =E13 -> 0 | R63: =G13 -> 0 | S63: =((($L$20+M$20+L$35+M$35+N$35+$V$35)*P63*O63)*((1+N63)^L63)) ->  | T63: =(($N$20+$O$20+$O$35+$P$35+$Q$35+$W$35)*Q63*O63*((1+N63)^L63)) ->  | U63: =(($P$20+$Q$20+$R$35+$S$35+$T$35+$X$35)*$R63*$O63*((1+$N63)^$L63)) ->  | V63: =$P$6*$R63*$O63*((1+$N63)^$L63) -> 0 | W63: =SUM(S63:V63) -> 
B64: Utkjøring - produktivitet | C64: m3/lass | E64: kr/time | K64: over 10 år | L64: =IF(C26=1,15,IF(C26=2,18,IF(C26=3,20,IF(C26=4,30)))) -> FALSE | M64: =M62 -> 0 | N64: =N62 -> 0.04 | O64: 1 | P64: =C14 -> 0 | Q64: =E14 -> 0 | R64: =G14 -> 0 | V64: 0
B65: Lassbærer | C65: =ForutsetningEnkel!C35 -> 15 | E65: =ForutsetningEnkel!E35 -> 1000 | S65: =SUM(S62:S64) ->  | T65: =SUM(T62:T64) ->  | U65: =SUM(U62:U64) ->  | V65: =SUM(V62:V64) -> 0 | W65: =SUM(S65:V65) -> 
B66: Stammelunner | C66: 5 | E66: 600 | K66: Administrasjon, planting og ungskogpleie - Nåverdi
B67: Traktor | C67: 3.5 | E67: 500 | K67: periode | L67: diskontering | M67: rente | N67: tilvekst | O67: disk. faktor | P67: Nåverdi av innsp
B68: Årlig tilvekst i skogen | C68: =ForutsetningEnkel!C39 -> 0.04 | K68: =H26 ->  | L68: =IF(C26=1,10,IF(C26=2,13,IF(C26=3,15,IF(C26=4,20)))) -> FALSE | M68: =M63 -> 0 | N68: =N62 -> 0.04 | O68: =POWER(1+M68,L68*-1) -> 1 | P68: =O49*O68 -> 
B69: Bompenger | C69: 0 | D69: kr/år | K69: Jakt, fiske, friluftsliv og bompenger
B70: Skogfondsmidler på konto | C70: 0 | D70: kr | K70: periode | L70: kapitalisering | M70: rente | N70: tilvekst | O70: kapit. faktor | P70: Jakt, fiske, frilu | Q70: Bompenger | R70: Sum
B71: Potensielt forskudd | C71: =((E42*C9*C12)+(C42*E9*E12)+(C42*G9*G12))*0.4 -> 0 | D71: kr | K71: =K68 ->  | L71: =K71 ->  | M71: =M62 -> 0 | N71: =N62 -> 0.04 | O71: =(((1+M71)^L71)-1)/(M71*(1+M71)^L71) ->  | P71: =C40*O71 ->  | Q71: =O71*C69 ->  | R71: =SUM(P71:Q71) -> 
B72: Forskudd på skogfond | C72: =F73 -> 0 | D72: kr
B73: Andre midler veikostnad | C73: =C20-C23-C70-C72 -> 0 | D73: kr | E73: =IF(C73<0, "OBS! KAN IKKE VÆRE NEGATIV","") ->  | F73: =$C20-C23-C70 -> 0
B74: Vedlikehold - nåverdi | C74: =ROUND(M86,-1) ->  | D74: kr | E74: =IF($C$5=2,"IKKE SKOGFOND PÅ VEDLIKEHOLD AV TRAKTORVEI","") -> 
B75: Maks skogfond på vedlikehold | C75: =IF(C5=1,(ROUND(G75,-1)),0) ->  | D75: kr | E75: =IF($E$24>4,$C$74-$G$75,0) ->  | G75: =IF(E24=0,0,IF(C5=1,(C74*(4/E24)),C74)) -> 
B76: Vedlikehold - bruk av skogfond | C76: =IF(C5=2,0,IF(G75>C74,C74,G75)) ->  | D76: kr | E76: =IF(C5=2,"",IF(C76>C75,"OBS! OVER MAKSNIVÅ","")) -> 
B77: Andre midler vedlikehold | C77: =IF(C5=2,C74,IF(AND(C5=1,C74>=C75),C74-C75,0)) ->  | D77: kr | E77: =IF($C$76>$C$74,"OBS! OVER BEHOVET FOR VEDLIKEHOLD","") -> 
B78: Skattefriandel av skogfond | C78: 0.85
K85: Anleggskostnadene | L85: Vei | M85: Vedlikehold | N85: Sum
L86: =C20 -> 0 | M86: =C24*O71 ->  | N86: =SUM(L86:M86) -> 
L87: Før tilskudd | M87: Etter tilskudd | N87: Etter tilskudd og skogfond
B88: =Avansert!B83 -> Sist oppdatert: 06.10.2015 | K88: Nåverdi innsparing | L88: =W65+P68+R71 ->  | M88: =L88 ->  | N88: =L88 -> 
K89: Nåverdi kostnader | L89: =N86 ->  | M89: =(L86*(1-C22))+M86 ->  | N89: =(L86*N97)+M86 -> 
K90: Kapitalverdi | L90: =L88-L89 ->  | M90: =M88-M89 -> 
M92: =N92 -> 0 | N92: =C20 -> 0 | O92: A | P92: M77
K93: Tilskudd | M93: =100*N93 -> 0 | N93: =C22 -> 0 | O93: T | P93: M78
K94: Skogfond | M94: 85 | N94: 0.85 | O94: k | P94: M79
K95: Marginal skattesats: | M95: =100*N95 -> 0 | N95: =C25 -> 0 | O95: s | P95: M80
K96: Faktor | M96: =((M93/100)+((M94/100*(1-(M93/100))*M95/100)/(1-(M95/100)))) -> 0 | N96: =N92*N95+N92*N94*N95+N92*N93*(1-N95*(1+N94)) -> 0
M97: =M92*M96 -> 0 | N97: =(N92-N96)/N92 -> 
M98: Skoghåndbok

Sheet VedleggEnkel
L3: VEDLEGG TIL LØNNSOMHETSBEREGNING FOR SKOGVEI
B8: Til:
B10: Søkerens navn:
B12: Adresse:
B14: Veiens navn: | W14: Planlegger:
B16: FORUTSETNINGER
B18: Kalkulasjonsrentefot: | S18: =Enkel!C21 -> 0 | V18: Årlig volumtilvekst: | AC18: =Enkel!C68 -> 0.04
B20: Direkte statstilskudd: | S20: =Enkel!C22 -> 0 | V20: Uttak (m3) i hogstklasse lll: | AC20: =Enkel!C9 -> 0 | AD20: m3
B22: Marginal skattesats: | S22: =Enkel!C25 -> 0 | V22: Uttak (m3) i hogstklasse lV-V: | AC22: =Enkel!E9+Enkel!G9 -> 0 | AD22: m3
B24: Avskrivningstid: | S24: =Enkel!D26 -> 
AA26: Prosentvis fordeling
B27: Fordeling avvirkningskvantum: | Q27: Periode | U27: Tidsrom | Y27: H.kl. III | AB27: H.kl. IV | AD27: H.kl. IV
S28: 1 | U28: 0 - 5 | V28: år | Y28: =Enkel!C12 -> 0 | AB28: =Enkel!E12 -> 0 | AD28: =Enkel!G12 -> 0
S29: 2 | U29: 5 - 10 | V29: år | Y29: =Enkel!C13 -> 0 | AB29: =Enkel!E13 -> 0 | AD29: =Enkel!G13 -> 0
S30: 3 | U30: over 10 | V30: år | Y30: =Enkel!C14 -> 0 | AB30: =Enkel!E14 -> 0 | AD30: =Enkel!G14 -> 0
B32: LØNNSOMHET
T34: Før tilskudd og skogfond | Y34: Etter tilskudd og skogfond
U35: kr | W35: kr/m3 | AB35: Totalt (kr) | AD35: kr/m3
B36: Nåverdien innsparinger: | U36: =Enkel!C30 ->  | W36: =Enkel!C31 ->  | AB36: =Enkel!G30 ->  | AD36: =Enkel!G31 -> 
B37: Nåverdi kostnader: | U37: =Enkel!C32 ->  | W37: =Enkel!C33 ->  | AB37: =Enkel!G32 ->  | AD37: =Enkel!G33 -> 
B38: Kapitalverdi: | U38: =Enkel!C34 ->  | W38: =Enkel!C35 ->  | AB38: =Enkel!G34 ->  | AD38: =Enkel!G35 -> 
B41: KOMMENTARER
B54: Sted/dato: | W54: Underskrift:

Sheet ForutsetningEnkel
B2: Forutsetninger i den enkle lønnsomhetsberegningen
B4: Andel utilgjeng uten vei | C4: 0
B5: Jakt, fiske, friluftsliv o.a. | C5: 0 | D5: kr/år
C6: Sagtømmer | E6: Massevirke
B7: Tømmerpriser | C7: 500 | D7: kr/m3 | E7: 200 | F7: kr/m3
B8: Driftspriser | C8: Hogst | E8: Utkjøring | G8: Sum
B9: Slutthogst | C9: 60 | D9: kr/m3 | E9: 60 | F9: kr/m3 | G9: 120 | H9: kr/m3
B10: Tynning | C10: 90 | D10: kr/m3 | E10: 100 | F10: kr/m3 | G10: 190 | H10: kr/m3
C11: Planting | E11: Rydding | G11: Tynning
B12: Skogkultur - andel | C12: 0.3 | E12: 0.1 | G12: 0.2
C14: planter/dag | E14: planter/daa | G14: kr/time
B15: Planting | C15: 1000 | E15: 250 | G15: 400
C17: daa/dag | E17: kr/time
B18: Rydding | C18: 7 | E18: 450
B20: Hogst - prosentandel | C20: III | E20: IV | G20: V
B21: Hogstmaskin | C21: 1 | E21: 1 | G21: 1
B22: Motorsag | C22: 0 | E22: 0 | G22: 0
B24: Hogst - produktivitet | C24: m3/dag | E24: kr/time
B25: Hogstmaskin | C25: 150 | E25: 1200
B26: Motorsag | C26: 15 | E26: 450
B28: Utkjøring - prosentandel | C28: III | E28: IV | G28: V
B29: Lassbærer | C29: 1 | E29: 1 | G29: 1
B30: Stammelunner | C30: 0 | E30: 0 | G30: 0
B31: Traktor | C31: 0 | E31: 0 | G31: 0
B32: Annet | C32: 0 | E32: 0 | G32: 0
C33: 0 | D33: kr/m3 | E33: 0 | F33: kr/m3 | G33: 0 | H33: kr/m3
B34: Utkjøring - produktivitet | C34: m3/lass | E34: kr/time
B35: Lassbærer | C35: 15 | E35: 1000
B36: Stammelunner | C36: 5 | E36: 600
B37: Traktor | C37: 3.5 | E37: 500
B39: Årlig tilvekst i skogen | C39: 0.04
B40: Bompenger | C40: 0 | D40: kr/år
B41: Skogfond utnyttes maksimalt
B42: Skattefriandel av skogfond | C42: 0.85

Sheet Grunndata (hidden)
B1: Korreksjonsfaktor | G1: Faktorer | K1: Terrengkjøring G15-min/m3ub/100m
C2: Helning | G2: Overflate | H2: Helning | L2: Helning
A3: Overflate | B3: 1 | C3: 2 | D3: 3 | E3: 4 | F3: 1 | G3: 1.1 | H3: 1.001 | I3: m3ub/lass | J3: Overflate | K3: 1 | L3: 2 | M3: 3 | N3: 4
A4: 1 | B4: =G3*$H$3 -> 1.1011 | C4: =G3*$H$4 -> 1.1121 | D4: =G3*$H$5 -> 1.1341 | E4: =G3*$H$6 -> 1.1847 | F4: 2 | G4: 1.2 | H4: 1.011 | I4: =Avansert!C42 -> 0 | J4: 1 | K4: =216/G11/$I$4 -> 
A5: 2 | B5: =G4*$H$3 -> 1.2012 | C5: =G4*$H$4 -> 1.2132 | D5: =G4*$H$5 -> 1.2372 | E5: =G4*$H$6 -> 1.2924 | F5: 3 | G5: 1.35 | H5: 1.031 | J5: 2
A6: 3 | B6: =G5*$H$3 -> 1.35135 | C6: =G5*$H$4 -> 1.36485 | D6: =G5*$H$5 -> 1.39185 | E6: =G5*$H$6 -> 1.45395 | F6: 4 | G6: 1.5 | H6: 1.077 | J6: 3
A7: 4 | B7: =G6*$H$3 -> 1.5015 | C7: =G6*$H$4 -> 1.5165 | D7: =G6*$H$5 -> 1.5465 | E7: =G6*$H$6 -> 1.6155 | J7: 4
B8: Ganghastigher | D8: min/100m | F8: Terrengkjøring m/min- lassbærer | K8: Terrengkjøring m/min- stammel./traktor
C9: Helning | H9: Helning | M9: Helning
A10: Overflate | B10: 1 | C10: 2 | D10: 3 | E10: 4 | F10: Overflate | G10: 1 | H10: 2 | I10: 3 | J10: 4 | K10: Overflate | L10: 1 | M10: 2 | N10: 3 | O10: 4
A11: 1 | B11: 3 | C11: =B11*1.2 -> 3.6 | D11: =B11*1.3 -> 3.9 | E11: =B11*1.4 -> 4.2 | F11: 1 | G11: 65 | H11: 63 | I11: 57 | J11: 42 | K11: 1 | L11: 100 | M11: =H11/$G$11*$L$11 -> 96.92307692 | N11: =I11/$G$11*$L$11 -> 87.69230769 | O11: 64.61538462
A12: 2 | B12: 3.8 | C12: =B12*1.2 -> 4.56 | D12: =B12*1.3 -> 4.94 | E12: =B12*1.4 -> 5.32 | F12: 2 | G12: 58 | H12: 53 | I12: 47 | J12: 33 | K12: 2 | L12: =G12/$G$11*$L$11 -> 89.23076923 | M12: =H12/$G$11*$L$11 -> 81.53846154 | N12: 72.30769231 | O12: 50.76923077
A13: 3 | B13: 4.6 | C13: =B13*1.2 -> 5.52 | D13: =B13*1.3 -> 5.98 | E13: =B13*1.4 -> 6.44 | F13: 3 | G13: 50 | H13: 45 | I13: 37 | J13: 28 | K13: 3 | L13: =G13/$G$11*$L$11 -> 76.92307692 | M13: =H13/$G$11*$L$11 -> 69.23076923 | N13: 56.92307692 | O13: 43.07692308
A14: 4 | B14: 5.4 | C14: =B14*1.2 -> 6.48 | D14: =B14*1.3 -> 7.02 | E14: =B14*1.4 -> 7.56 | F14: 4 | G14: 38 | H14: 35 | I14: 32 | J14: 23 | K14: 4 | L14: =G14/$G$11*$L$11 -> 58.46153846 | M14: =H14/$G$11*$L$11 -> 53.84615385 | N14: 49.23076923 | O14: 35.38461538
F16: min per 100 meter tilsvarer 200 meter reel terrengtransport
D18: Lassbærer | J18: Stammel./traktor | L18: Gangtid | N18: Lassbærer | P18: Stammel./traktor
B19: Gangtid | D19: Terrengtransport | G19: Korreksjonsfaktor | J19: Terrengtransport | L19: Traktorvei | N19: Traktorvei | P19: Traktorvei
B20: min/100m | D20: min/m3/100m | F20: min/100m | J20: min/m3/100m | K20: min/100m | L20: min/100m | M20: km/t | N20: min/100m | O20: km/t | P20: min/100m | Q20: km/t
A21: 11 | B21: =B11 -> 3 | C21: 11 | D21: =216/G11/$I$4 ->  | E21: 11 | F21: =D21*$I$4 ->  | G21: 11 | H21: =G3*$H$3 -> 1.1011 | I21: 11 | K21: =216/L11 -> 2.16 | L21: =((100/(M21/3.6))/60)*2 -> 2.4 | M21: 5 | N21: =((100/(O21/3.6))/60)*2 -> 3 | O21: 4 | P21: =((100/(Q21/3.6))/60)*2 -> 2 | Q21: 6
A22: 12 | B22: =B12 -> 3.8 | C22: 12 | D22: =216/G12/$I$4 ->  | E22: 12 | G22: 12 | H22: =G4*$H$3 -> 1.2012 | I22: 12 | K22: =216/L12 -> 2.420689655
A23: 13 | B23: =B13 -> 4.6 | C23: 13 | D23: =216/G13/$I$4 ->  | E23: 13 | G23: 13 | H23: =G5*$H$3 -> 1.35135 | I23: 13 | K23: =216/L13 -> 2.808
A24: 14 | B24: =B14 -> 5.4 | C24: 14 | D24: =216/G14/$I$4 ->  | E24: 14 | G24: 14 | H24: =G6*$H$3 -> 1.5015 | I24: 14 | K24: =216/L14 -> 3.694736842
A25: 21 | B25: =B21*1.2 -> 3.6 | C25: 21 | D25: =216/H11/$I$4 ->  | E25: 21 | G25: 21 | H25: =G3*$H$4 -> 1.1121 | I25: 21 | K25: =216/M11 -> 2.228571429
A26: 22 | B26: =B22*1.2 -> 4.56 | C26: 22 | D26: =216/H12/$I$4 ->  | E26: 22 | G26: 22 | H26: =G4*$H$4 -> 1.2132 | I26: 22 | K26: =216/M12 -> 2.649056604
A27: 23 | B27: =B23*1.2 -> 5.52 | C27: 23 | D27: =216/H13/$I$4 ->  | E27: 23 | G27: 23 | H27: =G5*$H$4 -> 1.36485 | I27: 23 | K27: =216/M13 -> 3.12
A28: 24 | B28: =B24*1.2 -> 6.48 | C28: 24 | D28: =216/H14/$I$4 ->  | E28: 24 | G28: 24 | H28: =G6*$H$4 -> 1.5165 | I28: 24 | K28: =216/M14 -> 4.011428571
A29: 31 | B29: =B21*1.3 -> 3.9 | C29: 31 | D29: =216/I11/$I$4 ->  | E29: 31 | G29: 31 | H29: =G3*$H$5 -> 1.1341 | I29: 31 | K29: =216/N11 -> 2.463157895
A30: 32 | B30: =B22*1.3 -> 4.94 | C30: 32 | D30: =216/I12/$I$4 ->  | E30: 32 | G30: 32 | H30: =G4*$H$5 -> 1.2372 | I30: 32 | K30: =216/N12 -> 2.987234043
A31: 33 | B31: =B23*1.3 -> 5.98 | C31: 33 | D31: =216/I13/$I$4 ->  | E31: 33 | G31: 33 | H31: =G5*$H$5 -> 1.39185 | I31: 33 | K31: =216/N13 -> 3.794594595
A32: 34 | B32: =B24*1.3 -> 7.02 | C32: 34 | D32: =216/I14/$I$4 ->  | E32: 34 | G32: 34 | H32: =G6*$H$5 -> 1.5465 | I32: 34 | K32: =216/N14 -> 4.3875 | M32: =100/B21 -> 33.33333333 | N32: =100/B25 -> 27.77777778 | O32: =100/B29 -> 25.64102564 | P32: =100/B33 -> 23.80952381
A33: 41 | B33: =B21*1.4 -> 4.2 | C33: 41 | D33: =216/J11/$I$4 ->  | E33: 41 | G33: 41 | H33: =G3*$H$6 -> 1.1847 | I33: 41 | K33: =216/O11 -> 3.342857143 | M33: =100/B22 -> 26.31578947 | N33: =100/B26 -> 21.92982456 | O33: =100/B30 -> 20.24291498 | P33: =100/B34 -> 18.79699248
A34: 42 | B34: =B22*1.4 -> 5.32 | C34: 42 | D34: =216/J12/$I$4 ->  | E34: 42 | G34: 42 | H34: =G4*$H$6 -> 1.2924 | I34: 42 | K34: =216/O12 -> 4.254545455 | M34: =100/B23 -> 21.73913043 | N34: =100/B27 -> 18.11594203 | O34: =100/B31 -> 16.72240803 | P34: =100/B35 -> 15.52795031
A35: 43 | B35: =B23*1.4 -> 6.44 | C35: 43 | D35: =216/J13/$I$4 ->  | E35: 43 | G35: 43 | H35: =G5*$H$6 -> 1.45395 | I35: 43 | K35: =216/O13 -> 5.014285714 | M35: =100/B24 -> 18.51851852 | N35: =100/B28 -> 15.43209877 | O35: =100/B32 -> 14.24501425 | P35: =100/B36 -> 13.22751323
A36: 44 | B36: =B24*1.4 -> 7.56 | C36: 44 | D36: =216/J14/$I$4 ->  | E36: 44 | G36: 44 | H36: =G6*$H$6 -> 1.6155 | I36: 44 | K36: =216/O14 -> 6.104347826
A37: 66 | B37: =L21 -> 2.4 | C37: 66 | F37: =N21 -> 3 | G37: 66 | H37: 1.1 | I37: 66 | K37: =P21 -> 2
C39: Lassbærer/hogstm | E39: Stammel/trakt | G39: Gangtid
C40: min/100m | E40: min/100m | G40: min/100m
B41: 11 | C41: =F21 ->  | D41: 11 | E41: =K21 -> 2.16 | F41: 11 | G41: =B21 -> 3
B42: 12 | C42: =F22 ->  | D42: 12 | E42: 2.420689655 | F42: 12 | G42: 3.8
B43: 13 | D43: 13 | E43: 2.808 | F43: 13 | G43: 4.6
B44: 14 | D44: 14 | E44: 3.694736842 | F44: 14 | G44: 5.4
B45: 21 | D45: 21 | E45: 2.228571429 | F45: 21 | G45: 3.6
B46: 22 | D46: 22 | E46: 2.649056604 | F46: 22 | G46: 4.56
B47: 23 | D47: 23 | E47: 3.12 | F47: 23 | G47: 5.52
B48: 24 | D48: 24 | E48: 4.011428571 | F48: 24 | G48: 6.48
B49: 31 | D49: 31 | E49: 2.463157895 | F49: 31 | G49: 3.9
B50: 32 | D50: 32 | E50: 2.987234043 | F50: 32 | G50: 4.94
B51: 33 | D51: 33 | E51: 3.794594595 | F51: 33 | G51: 5.98
B52: 34 | D52: 34 | E52: 4.3875 | F52: 34 | G52: 7.02
B53: 41 | D53: 41 | E53: 3.342857143 | F53: 41 | G53: 4.2
B54: 42 | D54: 42 | E54: 4.254545455 | F54: 42 | G54: 5.32
B55: 43 | D55: 43 | E55: 5.014285714 | F55: 43 | G55: 6.44
B56: 44 | D56: 44 | E56: 6.104347826 | F56: 44 | G56: 7.56
B57: 66 | C57: 3 | D57: 66 | E57: 2 | F57: 66 | G57: 2.4

Sheet GrunndataEnkel (hidden)
B1: Korreksjonsfaktor | G1: Faktorer | K1: Terrengkjøring G15-min/m3ub/100m
C2: Helning | G2: Overflate | H2: Helning | L2: Helning
A3: Overflate | B3: 1 | C3: 2 | D3: 3 | E3: 4 | F3: 1 | G3: 1.1 | H3: 1.001 | I3: m3ub/lass | J3: Overflate | K3: 1 | L3: 2 | M3: 3 | N3: 4
A4: 1 | B4: =G3*$H$3 -> 1.1011 | C4: =G3*$H$4 -> 1.1121 | D4: =G3*$H$5 -> 1.1341 | E4: =G3*$H$6 -> 1.1847 | F4: 2 | G4: 1.2 | H4: 1.011 | I4: 15 | J4: 1 | K4: =216/G11/$I$4 -> 0.2215384615 | L4: 0.2285714286 | M4: 0.2526315789 | N4: 0.3428571429
A5: 2 | B5: =G4*$H$3 -> 1.2012 | C5: =G4*$H$4 -> 1.2132 | D5: =G4*$H$5 -> 1.2372 | E5: =G4*$H$6 -> 1.2924 | F5: 3 | G5: 1.35 | H5: 1.031 | J5: 2 | K5: 0.2482758621 | L5: 0.2716981132 | M5: 0.3063829787 | N5: 0.4363636364
A6: 3 | B6: =G5*$H$3 -> 1.35135 | C6: =G5*$H$4 -> 1.36485 | D6: =G5*$H$5 -> 1.39185 | E6: =G5*$H$6 -> 1.45395 | F6: 4 | G6: 1.5 | H6: 1.077 | J6: 3 | K6: 0.288 | L6: 0.32 | M6: 0.3891891892 | N6: 0.5142857143
A7: 4 | B7: =G6*$H$3 -> 1.5015 | C7: =G6*$H$4 -> 1.5165 | D7: =G6*$H$5 -> 1.5465 | E7: =G6*$H$6 -> 1.6155 | J7: 4 | K7: 0.3789473684 | L7: 0.4114285714 | M7: 0.45 | N7: 0.6260869565
B8: Ganghastigher | D8: min/100m | F8: Terrengkjøring m/min- lassbærer | K8: Terrengkjøring m/min- stammel./traktor
C9: Helning | H9: Helning | M9: Helning
A10: Overflate | B10: 1 | C10: 2 | D10: 3 | E10: 4 | F10: Overflate | G10: 1 | H10: 2 | I10: 3 | J10: 4 | K10: Overflate | L10: 1 | M10: 2 | N10: 3 | O10: 4
A11: 1 | B11: 3 | C11: =B11*1.2 -> 3.6 | D11: =B11*1.3 -> 3.9 | E11: =B11*1.4 -> 4.2 | F11: 1 | G11: 65 | H11: 63 | I11: 57 | J11: 42 | K11: 1 | L11: 100 | M11: =H11/$G$11*$L$11 -> 96.92307692 | N11: =I11/$G$11*$L$11 -> 87.69230769 | O11: 64.61538462
A12: 2 | B12: 3.8 | C12: =B12*1.2 -> 4.56 | D12: =B12*1.3 -> 4.94 | E12: =B12*1.4 -> 5.32 | F12: 2 | G12: 58 | H12: 53 | I12: 47 | J12: 33 | K12: 2 | L12: =G12/$G$11*$L$11 -> 89.23076923 | M12: =H12/$G$11*$L$11 -> 81.53846154 | N12: 72.30769231 | O12: 50.76923077
A13: 3 | B13: 4.6 | C13: =B13*1.2 -> 5.52 | D13: =B13*1.3 -> 5.98 | E13: =B13*1.4 -> 6.44 | F13: 3 | G13: 50 | H13: 45 | I13: 37 | J13: 28 | K13: 3 | L13: =G13/$G$11*$L$11 -> 76.92307692 | M13: =H13/$G$11*$L$11 -> 69.23076923 | N13: 56.92307692 | O13: 43.07692308
A14: 4 | B14: 5.4 | C14: =B14*1.2 -> 6.48 | D14: =B14*1.3 -> 7.02 | E14: =B14*1.4 -> 7.56 | F14: 4 | G14: 38 | H14: 35 | I14: 32 | J14: 23 | K14: 4 | L14: =G14/$G$11*$L$11 -> 58.46153846 | M14: =H14/$G$11*$L$11 -> 53.84615385 | N14: 49.23076923 | O14: 35.38461538
F16: min per 100 meter tilsvarer 200 meter reel terrengtransport
D18: Lassbærer | J18: Stammel./traktor | L18: Gangtid | N18: Lassbærer | P18: Stammel./traktor
B19: Gangtid | D19: Terrengtransport | G19: Korreksjonsfaktor | J19: Terrengtransport | L19: Traktorvei | N19: Traktorvei | P19: Traktorvei
B20: min/100m | D20: min/m3/100m | F20: min/100m | J20: min/m3/100m | K20: min/100m | L20: min/100m | M20: km/t | N20: min/100m | O20: km/t | P20: min/100m | Q20: km/t
A21: 11 | B21: =B11 -> 3 | C21: 11 | D21: =216/G11/$I$4 -> 0.2215384615 | E21: 11 | F21: =D21*$I$4 -> 3.323076923 | G21: 11 | H21: =G3*$H$3 -> 1.1011 | I21: 11 | K21: =216/L11 -> 2.16 | L21: =((100/(M21/3.6))/60)*2 -> 2.4 | M21: 5 | N21: =((100/(O21/3.6))/60)*2 -> 3 | O21: 4 | P21: =((100/(Q21/3.6))/60)*2 -> 2 | Q21: 6
A22: 12 | B22: =B12 -> 3.8 | C22: 12 | D22: =216/G12/$I$4 -> 0.2482758621 | E22: 12 | F22: 3.724137931 | G22: 12 | H22: =G4*$H$3 -> 1.2012 | I22: 12 | K22: =216/L12 -> 2.420689655
A23: 13 | B23: =B13 -> 4.6 | C23: 13 | D23: =216/G13/$I$4 -> 0.288 | E23: 13 | F23: 4.32 | G23: 13 | H23: =G5*$H$3 -> 1.35135 | I23: 13 | K23: =216/L13 -> 2.808
A24: 14 | B24: =B14 -> 5.4 | C24: 14 | D24: =216/G14/$I$4 -> 0.3789473684 | E24: 14 | F24: 5.684210526 | G24: 14 | H24: =G6*$H$3 -> 1.5015 | I24: 14 | K24: =216/L14 -> 3.694736842
A25: 21 | B25: =B21*1.2 -> 3.6 | C25: 21 | D25: =216/H11/$I$4 -> 0.2285714286 | E25: 21 | F25: 3.428571429 | G25: 21 | H25: =G3*$H$4 -> 1.1121 | I25: 21 | K25: =216/M11 -> 2.228571429
A26: 22 | B26: =B22*1.2 -> 4.56 | C26: 22 | D26: =216/H12/$I$4 -> 0.2716981132 | E26: 22 | F26: 4.075471698 | G26: 22 | H26: =G4*$H$4 -> 1.2132 | I26: 22 | K26: =216/M12 -> 2.649056604
A27: 23 | B27: =B23*1.2 -> 5.52 | C27: 23 | D27: =216/H13/$I$4 -> 0.32 | E27: 23 | F27: 4.8 | G27: 23 | H27: =G5*$H$4 -> 1.36485 | I27: 23 | K27: =216/M13 -> 3.12
A28: 24 | B28: =B24*1.2 -> 6.48 | C28: 24 | D28: =216/H14/$I$4 -> 0.4114285714 | E28: 24 | F28: 6.171428571 | G28: 24 | H28: =G6*$H$4 -> 1.5165 | I28: 24 | K28: =216/M14 -> 4.011428571
A29: 31 | B29: =B21*1.3 -> 3.9 | C29: 31 | D29: =216/I11/$I$4 -> 0.2526315789 | E29: 31 | F29: 3.789473684 | G29: 31 | H29: =G3*$H$5 -> 1.1341 | I29: 31 | K29: =216/N11 -> 2.463157895
A30: 32 | B30: =B22*1.3 -> 4.94 | C30: 32 | D30: =216/I12/$I$4 -> 0.3063829787 | E30: 32 | F30: 4.595744681 | G30: 32 | H30: =G4*$H$5 -> 1.2372 | I30: 32 | K30: =216/N12 -> 2.987234043
A31: 33 | B31: =B23*1.3 -> 5.98 | C31: 33 | D31: =216/I13/$I$4 -> 0.3891891892 | E31: 33 | F31: 5.837837838 | G31: 33 | H31: =G5*$H$5 -> 1.39185 | I31: 33 | K31: =216/N13 -> 3.794594595
A32: 34 | B32: =B24*1.3 -> 7.02 | C32: 34 | D32: =216/I14/$I$4 -> 0.45 | E32: 34 | F32: 6.75 | G32: 34 | H32: =G6*$H$5 -> 1.5465 | I32: 34 | K32: =216/N14 -> 4.3875 | M32: =100/B21 -> 33.33333333 | N32: =100/B25 -> 27.77777778 | O32: =100/B29 -> 25.64102564 | P32: =100/B33 -> 23.80952381
A33: 41 | B33: =B21*1.4 -> 4.2 | C33: 41 | D33: =216/J11/$I$4 -> 0.3428571429 | E33: 41 | F33: 5.142857143 | G33: 41 | H33: =G3*$H$6 -> 1.1847 | I33: 41 | K33: =216/O11 -> 3.342857143 | M33: =100/B22 -> 26.31578947 | N33: =100/B26 -> 21.92982456 | O33: =100/B30 -> 20.24291498 | P33: =100/B34 -> 18.79699248
A34: 42 | B34: =B22*1.4 -> 5.32 | C34: 42 | D34: =216/J12/$I$4 -> 0.4363636364 | E34: 42 | F34: 6.545454545 | G34: 42 | H34: =G4*$H$6 -> 1.2924 | I34: 42 | K34: =216/O12 -> 4.254545455 | M34: =100/B23 -> 21.73913043 | N34: =100/B27 -> 18.11594203 | O34: =100/B31 -> 16.72240803 | P34: =100/B35 -> 15.52795031
A35: 43 | B35: =B23*1.4 -> 6.44 | C35: 43 | D35: =216/J13/$I$4 -> 0.5142857143 | E35: 43 | F35: 7.714285714 | G35: 43 | H35: =G5*$H$6 -> 1.45395 | I35: 43 | K35: =216/O13 -> 5.014285714 | M35: =100/B24 -> 18.51851852 | N35: =100/B28 -> 15.43209877 | O35: =100/B32 -> 14.24501425 | P35: =100/B36 -> 13.22751323
A36: 44 | B36: =B24*1.4 -> 7.56 | C36: 44 | D36: =216/J14/$I$4 -> 0.6260869565 | E36: 44 | F36: 9.391304348 | G36: 44 | H36: =G6*$H$6 -> 1.6155 | I36: 44 | K36: =216/O14 -> 6.104347826
A37: 66 | B37: =L21 -> 2.4 | C37: 66 | F37: =N21 -> 3 | G37: 66 | H37: 1.1 | I37: 66 | K37: =P21 -> 2
C39: Lassbærer/hogstm | E39: Stammel/trakt | G39: Gangtid
C40: min/100m | E40: min/100m | G40: min/100m
B41: 11 | C41: =F21 -> 3.323076923 | D41: 11 | E41: =K21 -> 2.16 | F41: 11 | G41: =B21 -> 3
B42: 12 | C42: =F22 -> 3.724137931 | D42: 12 | E42: 2.420689655 | F42: 12 | G42: 3.8
B43: 13 | C43: 4.32 | D43: 13 | E43: 2.808 | F43: 13 | G43: 4.6
B44: 14 | C44: 5.684210526 | D44: 14 | E44: 3.694736842 | F44: 14 | G44: 5.4
B45: 21 | C45: 3.428571429 | D45: 21 | E45: 2.228571429 | F45: 21 | G45: 3.6
B46: 22 | C46: 4.075471698 | D46: 22 | E46: 2.649056604 | F46: 22 | G46: 4.56
B47: 23 | C47: 4.8 | D47: 23 | E47: 3.12 | F47: 23 | G47: 5.52
B48: 24 | C48: 6.171428571 | D48: 24 | E48: 4.011428571 | F48: 24 | G48: 6.48
B49: 31 | C49: 3.789473684 | D49: 31 | E49: 2.463157895 | F49: 31 | G49: 3.9
B50: 32 | C50: 4.595744681 | D50: 32 | E50: 2.987234043 | F50: 32 | G50: 4.94
B51: 33 | C51: 5.837837838 | D51: 33 | E51: 3.794594595 | F51: 33 | G51: 5.98
B52: 34 | C52: 6.75 | D52: 34 | E52: 4.3875 | F52: 34 | G52: 7.02
B53: 41 | C53: 5.142857143 | D53: 41 | E53: 3.342857143 | F53: 41 | G53: 4.2
B54: 42 | C54: 6.545454545 | D54: 42 | E54: 4.254545455 | F54: 42 | G54: 5.32
B55: 43 | C55: 7.714285714 | D55: 43 | E55: 5.014285714 | F55: 43 | G55: 6.44
B56: 44 | C56: 9.391304348 | D56: 44 | E56: 6.104347826 | F56: 44 | G56: 7.56
B57: 66 | C57: 3 | D57: 66 | E57: 2 | F57: 66 | G57: 2.4
